{"text_format":"1","workbook":"xlsx","n_sheets":4,"sheets":["Support","Paraiska","Issimokejimo grafikas","Darbu Sarasas"],"not_rendered":{"charts":0,"images":1,"macros":1,"external_links":0,"defined_names":23,"comments":0,"pivot_tables":0},"unopened":[],"bounds":{"document_bytes":16777216,"sheet_cells":100000,"rows_first":2000,"rows_last":500,"rows_between":2000,"halvings":0,"cell_chars":16384,"cell_head_chars":4096},"cells_cut":0,"cells_raw":0,"read":"whole","date_system":"1900"}

{"sheet":"Support","index":0,"n_rows":254,"n_cols":31,"rows_kept":254,"cut":false,"hidden":true,"merged":[[77,1,81,1],[77,2,81,2],[77,3,81,3],[36,1,40,1],[36,2,40,2],[36,3,40,3],[56,1,60,1],[56,2,60,2],[56,3,60,3],[128,1,132,1],[128,2,132,2],[128,3,132,3],[148,1,152,1],[148,2,152,2],[148,3,152,3],[169,1,173,1],[169,2,173,2],[169,3,173,3],[184,1,184,6],[186,1,186,6],[180,1,180,3],[187,1,187,3],[187,4,187,6],[188,1,188,3],[188,4,188,6],[189,1,189,3],[189,4,189,6],[192,1,192,6],[193,1,193,3],[193,4,193,6],[194,1,194,3],[194,4,194,6],[195,1,195,3],[195,4,195,6],[198,1,198,6],[199,1,199,3],[199,4,199,6],[200,1,200,3],[200,4,200,6],[201,1,201,3],[201,4,201,6],[204,1,204,6],[218,1,218,3],[205,1,205,3],[205,4,205,6],[206,1,206,3],[206,4,206,6],[207,1,207,3],[207,4,207,6]]}
[null,"Pasirinkimas"]
[null,null,null,null,null,null,null,null,null,null,null,null,null,null,null,null,null,null,null,null,null,null,null,null,null,null,"Darbo tipai, kuriems niekada netaikomas nei garantinis sulaikymas, nei draudimas",null,null,"Darbas #1","Darbas #2"]
["PVM moketojas","PVM moketojas - PVM neapmokestinama veikla (ne rangos darbai)","Ne PVM moketojas - rangos darbai","Ne PVM moketojas - ne rangos darbai",null,"PVM moketojasTAIP","OK","PVM moketojas",1.2,1.21,null,null,null,null,null,null,null,null,null,null,null,null,null,null,null,null,"Pasirinkti darbo tipą","NE","Ar pasirinktas vienas iš šių darbo tipų?",{"$f":"IF(OR(Paraiska!$B$27=Support!$AA$4,Paraiska!$B$27=Support!$AA$5,Paraiska!$B$27=Support!$AA$6,Paraiska!$B$27=Support!$AA$7,Paraiska!$B$27=Support!$AA$8,Paraiska!$B$27=Support!$AA$9,Paraiska!$B$27=Support!AA10,Paraiska!$B$27=Support!$AA$11),\"TAIP\",\"NE\")","v":"NE"},{"$f":"IF(OR(Paraiska!$E$27=Support!$AA$4,Paraiska!$E$27=Support!$AA$5,Paraiska!$E$27=Support!$AA$6,Paraiska!$E$27=Support!$AA$7,Paraiska!$E$27=Support!$AA$8,Paraiska!$E$27=Support!$AA$9,Paraiska!$E$27=Support!AA10,Paraiska!$E$27=Support!$AA$11),\"TAIP\",\"NE\")","v":"NE"}]
["NE","NE","NE","NE",null,"PVM moketojasNE","OK","PVM moketojas - PVM neapmokestinama veikla (ne rangos darbai)",1.2,1.21,null,null,null,null,null,null,null,null,null,null,null,null,null,null,null,null,"Kondicionavimo sistemų papildymas šaldymo skysčiu","NE"]
["TAIP",null,null,null,null,"Ne PVM moketojas - rangos darbaiNE","OK","Ne PVM moketojas - rangos darbai",{"$f":"1.242","v":1.242},1,null,null,null,null,null,null,null,null,null,null,null,null,null,null,null,null,"Pastato konstrukcijų būklės vertinimas","NE"]
[null,null,null,null,null,"Ne PVM moketojas - rangos darbaiTAIP","NE","Ne PVM moketojas - ne rangos darbai",1.5,1,null,null,null,null,null,null,null,null,null,null,null,null,null,null,null,null,"Projektavimo darbai (išorės sienos (fasadai), balkonai, perdangos)","NE"]
["TAIP","NE","Minimali kaina kv.m., EUR",0.5,null,"PVM moketojas - PVM neapmokestinama veikla (ne rangos darbai)NE","OK",null,null,null,null,null,null,null,null,null,null,null,null,null,null,null,null,null,null,null,"Projektavimo darbai (šalto vandens, buitinių ir lietaus nuotekų sistemos)","NE"]
["12 men. (1m.)","Be issimokejimo termino","Minimali nemokumo riba",0.05,null,"PVM moketojas - PVM neapmokestinama veikla (ne rangos darbai)TAIP","NE",null,null,null,null,null,null,null,null,null,null,null,null,null,null,null,null,null,null,null,"Projektavimo darbai (šildymo ir karšto vandens sistemos, šilumos punktai)","NE"]
["18 men. (1.5m.)",null,null,null,null,"Ne PVM moketojas - ne rangos darbaiNE","OK",null,null,null,null,null,null,null,null,null,null,null,null,null,null,null,null,null,null,null,"Projektavimo darbai (stogai)","NE"]
["24 men. (2m.)",null,null,null,null,"Ne PVM moketojas - ne rangos darbaiTAIP","NE",null,null,null,null,null,null,null,null,null,null,null,null,null,null,null,null,null,null,null,"Projektavimo darbai ( elektros tinklai ir įrenginiai)","NE"]
["30 men. (2.5m.)",null,null,null,null,null,null,null,null,null,null,null,null,null,null,null,null,null,null,null,null,null,null,null,null,null,"Statinių konstrukcijų techninė apžiūra, tyrimai, periodinis patikrinimas, ekspertizės","NE"]
["36 men. (3m.)",null,null,null,null,"Ne PVM moketojas - ne rangos darbai VS kaupiamosios ir kiti avansai"]
["42 men. (3.5m.)",null,null,null,null,{"$f":"IFERROR(IF(Paraiska!B11=Support!H6,IF(Paraiska!B9=\"\",(Paraiska!B10+Paraiska!E10+(Paraiska!B10+Paraiska!E10)*Support!B18*1.21)/(Paraiska!B31+Paraiska!B32),(Paraiska!B9+Paraiska!E9+(Paraiska!B9+Paraiska!E9)*Support!B18*1.21)/(Paraiska!B31+Paraiska!B32)),\"\"),\"\")","v":""},"(kai <1, reiškia, kad kaupiamųjų ir kitų avansų yra daugiau nei Rangovo išrašomos sąskaitos be išsimokėjimo)"]
["48 men. (4m.)",null,null,null,null,null,null,null,null,null,null,null,null,null,"Pirkimai","CS2021P"]
[null,null,null,null,null,null,null,null,null,null,null,null,null,null,"Bendra","CSSE48",null,0.53023758099352047,7.559395248380131E-2,0.39416846652267828]
[null,"1-5",null,6,null,7,null,null,null,null,8,null,null,null,null,null,null,"1-5","6","7",null,"Bendras","Rėžio, į kurį patenka suma, numeris"]
["issimokejimo terminas","Mokestis, %","Min. mokestis, EUR","Mokestis, %","Min. mokestis, EUR","Mokestis, %","Faktoringo kaina","Garantija","Reiksmes","Menesiai","Nemokumo koef",null,null,null,"Nuo","Iki","Marža","Mokestis, %","Mokestis, %","Mokestis, %"]
["Be issimokejimo termino",0.25,0,0,0,0,0,0.04,"NE",1,0,null,null,1,1,500,0.25,{"$f":"Q18*$R$15","v":0.13255939524838012},{"$f":"Q18*$S$15","v":1.8898488120950328E-2},{"$f":"Q18*$T$15","v":9.8542116630669571E-2},null,{"$f":"IF(OR(AND(Paraiska!B$6 = 1, Paraiska!B$9=\"\"),AND(Paraiska!B$6 = 2, Paraiska!B$9=\"\", Paraiska!E$9=\"\")),IF(AND(Paraiska!B$10+Paraiska!E$10>=Support!O18, Paraiska!B$10+Paraiska!E$10<=Support!P18),1,0), IF(AND(Paraiska!B$9+Paraiska!E$9>=Support!O18, Paraiska!B$9+Paraiska!E$9 <=Support!P18), 1, 0))","v":0},{"$f":"SUMPRODUCT(N18:N25, V18:V25)","v":6}]
["12 men. (1m.)",0.13,300,0.02,100,0.05,7.6316491272950537E-2,0.04,"TAIP",12,0.5,null,null,2,500,1000,0.25,{"$f":"Q19*$R$15","v":0.13255939524838012},{"$f":"Q19*$S$15","v":1.8898488120950328E-2},{"$f":"Q19*$T$15","v":9.8542116630669571E-2},null,{"$f":"IF(OR(AND(Paraiska!B$6 = 1, Paraiska!B$9=\"\"),AND(Paraiska!B$6 = 2, Paraiska!B$9=\"\", Paraiska!E$9=\"\")),IF(AND(Paraiska!B$10+Paraiska!E$10>Support!O19, Paraiska!B$10+Paraiska!E$10<=Support!P19),1,0), IF(AND(Paraiska!B$9+Paraiska!E$9>Support!O19, Paraiska!B$9+Paraiska!E$9 <=Support!P19), 1, 0))","v":0}]
["18 men. (1.5m.)",0.121,300,0.02,100,7.0999999999999994E-2,0.10270034785286498,0.04,"TAIP",18,0.5,null,null,3,1000,5000,0.25,0.13255939524838012,1.8898488120950328E-2,9.8542116630669571E-2,null,{"$f":"IF(OR(AND(Paraiska!B$6 = 1, Paraiska!B$9=\"\"),AND(Paraiska!B$6 = 2, Paraiska!B$9=\"\", Paraiska!E$9=\"\")),IF(AND(Paraiska!B$10+Paraiska!E$10>Support!O20, Paraiska!B$10+Paraiska!E$10<=Support!P20),1,0), IF(AND(Paraiska!B$9+Paraiska!E$9>Support!O20, Paraiska!B$9+Paraiska!E$9 <=Support!P20), 1, 0))","v":0}]
["24 men. (2m.)",0.113,300,0.02,100,0.09,0.12305037125973285,0.04,"TAIP",24,0.5,null,null,4,5000,10000,0.25,0.13255939524838012,1.8898488120950328E-2,9.8542116630669571E-2,null,{"$f":"IF(OR(AND(Paraiska!B$6 = 1, Paraiska!B$9=\"\"),AND(Paraiska!B$6 = 2, Paraiska!B$9=\"\", Paraiska!E$9=\"\")),IF(AND(Paraiska!B$10+Paraiska!E$10>Support!O21, Paraiska!B$10+Paraiska!E$10<=Support!P21),1,0), IF(AND(Paraiska!B$9+Paraiska!E$9>Support!O21, Paraiska!B$9+Paraiska!E$9 <=Support!P21), 1, 0))","v":0}]
["30 men. (2.5m.)",0.104,300,0.02,100,0.108,0.13713406506233672,0.04,"TAIP",30,0.5,null,null,5,10000,20000,0.25,0.13255939524838012,1.8898488120950328E-2,{"$f":"Q22*$T$15","v":9.8542116630669571E-2},null,{"$f":"IF(OR(AND(Paraiska!B$6 = 1, Paraiska!B$9=\"\"),AND(Paraiska!B$6 = 2, Paraiska!B$9=\"\", Paraiska!E$9=\"\")),IF(AND(Paraiska!B$10+Paraiska!E$10>Support!O22, Paraiska!B$10+Paraiska!E$10<=Support!P22),1,0), IF(AND(Paraiska!B$9+Paraiska!E$9>Support!O22, Paraiska!B$9+Paraiska!E$9 <=Support!P22), 1, 0))","v":0}]
["36 men. (3m.)",9.6000000000000002E-2,300,0.02,100,0.123,0.14479037575786446,0.04,"TAIP",36,0.5,null,null,6,20000,100000,0.25,0.13255939524838012,1.8898488120950328E-2,9.8542116630669571E-2,null,{"$f":"IF(OR(AND(Paraiska!B$6 = 1, Paraiska!B$9=\"\"),AND(Paraiska!B$6 = 2, Paraiska!B$9=\"\", Paraiska!E$9=\"\")),IF(AND(Paraiska!B$10+Paraiska!E$10>Support!O23, Paraiska!B$10+Paraiska!E$10<=Support!P23),1,0), IF(AND(Paraiska!B$9+Paraiska!E$9>Support!O23, Paraiska!B$9+Paraiska!E$9 <=Support!P23), 1, 0))","v":1}]
["42 men. (3.5m.)",8.7999999999999995E-2,300,0.02,100,0.13800000000000001,0.16946973604135224,0.04,"TAIP",42,0.5,null,null,7,100000,300000,0.2,0.1060475161987041,1.5118790496760263E-2,7.8833693304535657E-2,null,{"$f":"IF(OR(AND(Paraiska!B$6 = 1, Paraiska!B$9=\"\"),AND(Paraiska!B$6 = 2, Paraiska!B$9=\"\", Paraiska!E$9=\"\")),IF(AND(Paraiska!B$10+Paraiska!E$10>Support!O24, Paraiska!B$10+Paraiska!E$10<=Support!P24),1,0), IF(AND(Paraiska!B$9+Paraiska!E$9>Support!O24, Paraiska!B$9+Paraiska!E$9 <=Support!P24), 1, 0))","v":0}]
["48 men. (4m.)",0.08,300,0.02,100,0.15,0.19448203394884239,0.04,"TAIP",48,0.5,null,null,8,300000,"ir daugiau",0.15,7.9535637149028074E-2,1.1339092872570197E-2,5.9125269978401743E-2,null,{"$f":"IF(OR(AND(Paraiska!B$6 = 1, Paraiska!B$9=\"\"),AND(Paraiska!B$6 = 2, Paraiska!B$9=\"\", Paraiska!E$9=\"\")),IF(Paraiska!B$10+Paraiska!E$10>Support!O25,1,0), IF(Paraiska!B$9+Paraiska!E$9>Support!O25,1, 0))","v":0}]
[]
[]
[null,"Bendras"]
[]
["Finansuotojas finansuoja rangovo saskaita",null,null,null,null,null,null,null,null,null,null,null,null,0,1,null,null,null,"Į kurį garantinio sulaikymo (draudimo) pasirinkimų rėžį patenka pasirinktas darbas?"]
[null,null,null,null,null,null,null,null,null,null,null,null,null,"Taikomas garantinis sulaikymas","Netaikoma",null,null,null,{"$f":"VLOOKUP(Paraiska!$B$27,'Darbu Sarasas'!$F$1:$K$55,6,FALSE)","v":0}]
["Tarpine rangovo saskaita (skirta faktoringo kainos apskaičiavimui)","Suma","PVM","Suma su PVM",null,null,null,null,null,null,null,null,null,"Darbų garantinių trūkumų (defektų) pašalinimo draudimas"]
[null,{"$f":"IF(OR(AND(Paraiska!B6 = 1, Paraiska!B9=\"\"),AND(Paraiska!B6 = 2, Paraiska!B9=\"\", Paraiska!E9=\"\")),IF(OR(Paraiska!B11=\"PVM moketojas\",Paraiska!B11=\"PVM moketojas - PVM neapmokestinama veikla (ne rangos darbai)\")=TRUE,Paraiska!B10+Paraiska!E10+B45,Paraiska!B10+Paraiska!E10+D45),IF(OR(Paraiska!B11=\"PVM moketojas\",Paraiska!B11=\"PVM moketojas - PVM neapmokestinama veikla (ne rangos darbai)\")=TRUE,Paraiska!B9+Paraiska!E9+B45,Paraiska!B9+Paraiska!E9+D45))","v":62500},{"$f":"IF(OR(Paraiska!B11=\"PVM moketojas\",Paraiska!B11=\"PVM moketojas - PVM neapmokestinama veikla (ne rangos darbai)\")=TRUE,B33*0.21,0)","v":13125},{"$f":"SUM(B33,C33)","v":75625}]
[]
[null,null,null,null,null,null,null,null,null,null,null,null,null,"Taikomas garantinis sulaikymas","TAIP"]
[null,"Suma","PVM","Suma su PVM",null,null,null,null,null,null,null,null,null,"Darbų garantinių trūkumų (defektų) pašalinimo draudimas","NE"]
["1 - Techninis konsultavimas del optimalaus darbu įgyvendinimo",{"$f":"IF(Paraiska!B35=Support!A18,IF(OR(AND(Paraiska!B6 = 1, Paraiska!B9=\"\"),AND(Paraiska!B6 = 2, Paraiska!B9=\"\", Paraiska!E9=\"\")),ROUND(VLOOKUP(W18, N18:T25, 4, FALSE)*(Paraiska!B10+Paraiska!E10),2)+IF(F13<=1,0,ROUND(IF(Paraiska!B36<D8,0,Paraiska!B36*VLOOKUP(Paraiska!B35,Support!A18:K25,11,0))*(Paraiska!B10+Paraiska!E10),2)),ROUND(VLOOKUP(W18, N18:T25, 4, FALSE)*(Paraiska!B9+Paraiska!E9),2)+IF(F13<=1,0,ROUND(IF(Paraiska!B36<D8,0,Paraiska!B36*VLOOKUP(Paraiska!B35,Support!A18:K25,11,0))*(Paraiska!B9+Paraiska!E9),2))),IF(OR(AND(Paraiska!B6 = 1, Paraiska!B9=\"\"),AND(Paraiska!B6 = 2, Paraiska!B9=\"\", Paraiska!E9=\"\")),ROUND(VLOOKUP(W18, N18:T25, 5, FALSE)*(Paraiska!B10+Paraiska!E10),2)+IF(F13<=1,0,ROUND(IF(Paraiska!B36<D8,0,Paraiska!B36*VLOOKUP(Paraiska!B35,Support!A18:K25,11,0))*(Paraiska!B10+Paraiska!E10),2)),ROUND(VLOOKUP(W18, N18:T25, 5, FALSE)*(Paraiska!B9+Paraiska!E9),2)+IF(F13<=1,0,ROUND(IF(Paraiska!B36<D8,0,Paraiska!B36*VLOOKUP(Paraiska!B35,Support!A18:K25,11,0))*(Paraiska!B9+Paraiska!E9),2))))","v":6627.97},{"$f":"ROUND(B37*0.21,2)","v":1391.87},{"$f":"B37+C37","v":8019.84},null,null,null,null,null,null,null,null,null,"Netaikoma","NE"]
["2 - Projektines uzduoties parengimas, siekiant Rangovui tinkamai pateikti pirkimo pasiulyma"]
["3 - Rangovu atliktu darbu garantiniu įsipareigojimu organizavimas"]
["4 - Rangovu sertifikavimas (patikimu tiekeju sarasas)"]
["5 - Marketingines, reklamines (patikimu rangovu saraso viesinimo) paslaugos"]
["6 - Rangovu finansinio faktoringo organizavimas",{"$f":"IF(Paraiska!B35=Support!A18,0,IF(OR(AND(Paraiska!B6 = 1, Paraiska!B9=\"\"),AND(Paraiska!B6 = 2, Paraiska!B9=\"\", Paraiska!E9=\"\")),ROUND(VLOOKUP(W18, N18:T25, 6, FALSE)*(Paraiska!B10+Paraiska!E10),2),ROUND(VLOOKUP(W18, N18:T25, 6, FALSE)*(Paraiska!B9+Paraiska!E9),2)))","v":944.92},{"$f":"ROUND(B42*0.21,2)","v":198.43},{"$f":"B42+C42","v":1143.3499999999999}]
["7 - Garantijos kastai",{"$f":"IF(Paraiska!B35=Support!A18,0,IF(OR(AND(Paraiska!B6 = 1, Paraiska!B9=\"\"),AND(Paraiska!B6 = 2, Paraiska!B9=\"\", Paraiska!E9=\"\")),ROUND(VLOOKUP(W18, N18:T25, 7, FALSE)*(Paraiska!B10+Paraiska!E10),2),ROUND(VLOOKUP(W18, N18:T25, 7, FALSE)*(Paraiska!B9+Paraiska!E9),2)))","v":4927.1099999999997},{"$f":"ROUND(B43*0.21,2)","v":1034.69},{"$f":"B43+C43","v":5961.7999999999993}]
[]
["Daugiabučio administratoriaus israsoma saskaita (Rangovui)",{"$f":"SUM(B37:B43)","v":12500},{"$f":"SUM(C37:C43)","v":2624.99},{"$f":"SUM(D37:D43)","v":15124.99}]
[]
[]
[null,"#1 Pasirinkimas"]
[]
["Finansuotojas finansuoja rangovo saskaita"]
[]
["Tarpine rangovo saskaita (skirta faktoringo kainos apskaičiavimui)","Suma","PVM","Suma su PVM"]
[null,{"$f":"IF(OR(AND(Paraiska!B6 = 1, Paraiska!B9=\"\"),AND(Paraiska!B6 = 2, Paraiska!B9=\"\", Paraiska!E9=\"\")),IF(OR(Paraiska!B11=\"PVM moketojas\",Paraiska!B11=\"PVM moketojas - PVM neapmokestinama veikla (ne rangos darbai)\")=TRUE,Paraiska!B10+B65,Paraiska!B10+D65),IF(OR(Paraiska!B11=\"PVM moketojas\",Paraiska!B11=\"PVM moketojas - PVM neapmokestinama veikla (ne rangos darbai)\")=TRUE,Paraiska!B9+B65,Paraiska!B9+D65))","v":62500},{"$f":"IF(OR(Paraiska!B11=\"PVM moketojas\",Paraiska!B11=\"PVM moketojas - PVM neapmokestinama veikla (ne rangos darbai)\")=TRUE,B53*0.21,0)","v":13125},{"$f":"SUM(B53,C53)","v":75625}]
[]
[]
[null,"Suma","PVM","Suma su PVM"]
["1 - Techninis konsultavimas del optimalaus darbu įgyvendinimo",{"$f":"IF(OR(AND(Paraiska!B6 = 1, Paraiska!B9=\"\"),AND(Paraiska!B6 = 2, Paraiska!B9=\"\", Paraiska!E9=\"\")),IFERROR(B37/SUM(Paraiska!B10:G10)*Paraiska!B10,0),IFERROR(B37/SUM(Paraiska!B9:G9)*Paraiska!B9,0))","v":6627.9699999999993},{"$f":"ROUND(B57*0.21,2)","v":1391.87},{"$f":"B57+C57","v":8019.8399999999992}]
["2 - Projektines uzduoties parengimas, siekiant Rangovui tinkamai pateikti pirkimo pasiulyma"]
["3 - Rangovu atliktu darbu garantiniu įsipareigojimu organizavimas"]
["4 - Rangovu sertifikavimas (patikimu tiekeju sarasas)"]
["5 - Marketingines, reklamines (patikimu rangovu saraso viesinimo) paslaugos"]
["6 - Rangovu finansinio faktoringo organizavimas",{"$f":"IF(OR(AND(Paraiska!B6 = 1, Paraiska!B9=\"\"),AND(Paraiska!B6 = 2, Paraiska!B9=\"\", Paraiska!E9=\"\")),IFERROR(B42/SUM(Paraiska!B10:G10)*Paraiska!B10,0),IFERROR(B42/SUM(Paraiska!B9:G9)*Paraiska!B9,0))","v":944.92},{"$f":"ROUND(B62*0.21,2)","v":198.43},{"$f":"B62+C62","v":1143.3499999999999}]
["7 - Garantijos kastai",{"$f":"IF(OR(AND(Paraiska!B6 = 1, Paraiska!B9=\"\"),AND(Paraiska!B6 = 2, Paraiska!B9=\"\", Paraiska!E9=\"\")),IFERROR(B43/SUM(Paraiska!B10:G10)*Paraiska!B10,0),IFERROR(B43/SUM(Paraiska!B9:G9)*Paraiska!B9,0))","v":4927.1099999999997},{"$f":"ROUND(B63*0.21,2)","v":1034.69},{"$f":"B63+C63","v":5961.7999999999993}]
[]
["Daugiabučio administratoriaus israsoma saskaita (Rangovui)",{"$f":"SUM(B57:B63)","v":12500},{"$f":"SUM(C57:C63)","v":2624.99},{"$f":"SUM(D57:D63)","v":15124.989999999998}]
[]
[]
[null,"#2 Pasirinkimas"]
[]
["Finansuotojas finansuoja rangovo saskaita"]
[]
["Tarpine rangovo saskaita (skirta faktoringo kainos apskaičiavimui)","Suma","PVM","Suma su PVM"]
[null,{"$f":"IF(OR(AND(Paraiska!B6 = 1, Paraiska!B9=\"\"),AND(Paraiska!B6 = 2, Paraiska!B9=\"\", Paraiska!E9=\"\")),IF(OR(Paraiska!B11=\"PVM moketojas\",Paraiska!B11=\"PVM moketojas - PVM neapmokestinama veikla (ne rangos darbai)\")=TRUE,Paraiska!E10+B86,Paraiska!E10+D86),IF(OR(Paraiska!B11=\"PVM moketojas\",Paraiska!B11=\"PVM moketojas - PVM neapmokestinama veikla (ne rangos darbai)\")=TRUE,Paraiska!E9+B86,Paraiska!E9+D86))","v":0},{"$f":"IF(OR(Paraiska!B11=\"PVM moketojas\",Paraiska!B11=\"PVM moketojas - PVM neapmokestinama veikla (ne rangos darbai)\")=TRUE,B73*0.21,0)","v":0},{"$f":"SUM(B73,C73)","v":0}]
[]
[]
[]
[null,"Suma","PVM","Suma su PVM"]
["1 - Techninis konsultavimas del optimalaus darbu įgyvendinimo",{"$f":"B37-B57","v":0},{"$f":"C37-C57","v":0},{"$f":"B78+C78","v":0}]
["2 - Projektines uzduoties parengimas, siekiant Rangovui tinkamai pateikti pirkimo pasiulyma",null,null,{"$f":"B79+C79","v":0}]
["3 - Rangovu atliktu darbu garantiniu įsipareigojimu organizavimas",null,null,0]
["4 - Rangovu sertifikavimas (patikimu tiekeju sarasas)",null,null,0]
["5 - Marketingines, reklamines (patikimu rangovu saraso viesinimo) paslaugos",null,null,0]
["6 - Rangovu finansinio faktoringo organizavimas",{"$f":"B42-B62","v":0},{"$f":"C42-C62","v":0},{"$f":"B83+C83","v":0}]
["7 - Garantijos kastai",{"$f":"B43-B63","v":0},{"$f":"C43-C63","v":0},{"$f":"B84+C84","v":0}]
[]
["Daugiabučio administratoriaus israsoma saskaita (Rangovui)",{"$f":"SUM(B78:B84)","v":0},{"$f":"SUM(C78:C84)","v":0},{"$f":"SUM(D78:D84)","v":0}]
[]
[]
["Įmoniu sarasas"]
["Pasirinkti administratoriaus pavadinimą"]
["UAB „Mano Bustas Alytus“"]
["UAB „Mano Bustas Aukstaitija“"]
["UAB „Mano Bustas Dainava“"]
["UAB „Mano Bustas Baltija“"]
["UAB „Mano Bustas Sostine“"]
["UAB „Mano Bustas NPC“"]
["UAB „Mano Bustas Vilnius“"]
["UAB „Mano Bustas Radviliskis“"]
["UAB „Mano Bustas Siauliai“"]
["UAB „Mano Bustas Vakarai“"]
["UAB „Mano Bustas Klaipeda“"]
["UAB „Mano Bustas Neris“"]
["UAB „Mano Bustas Kaunas“"]
["UAB „Merlangas“"]
["UAB „Mano Busto Prieziura“"]
[]
[]
[]
[]
[]
[]
[]
[]
[]
[]
[]
[]
[null,"Papildoma informacija apskaičiuoti išsimokėjimo terminą pagal prognozuojamą kainą"]
[]
[null,"Bendras"]
[]
["Finansuotojas finansuoja rangovo saskaita"]
[]
["Tarpine rangovo saskaita (skirta faktoringo kainos apskaičiavimui)","Suma","PVM","Suma su PVM"]
[null,{"$f":"IF(OR(Paraiska!B11=\"PVM moketojas\",Paraiska!B11=\"PVM moketojas - PVM neapmokestinama veikla (ne rangos darbai)\")=TRUE,Paraiska!B10+Paraiska!E10+B137,Paraiska!B10+Paraiska!E10+D137)","v":62500},{"$f":"IF(OR(Paraiska!B11=\"PVM moketojas\",Paraiska!B11=\"PVM moketojas - PVM neapmokestinama veikla (ne rangos darbai)\")=TRUE,B125*0.21,0)","v":13125},{"$f":"SUM(B125,C125)","v":75625}]
[]
[]
[null,"Suma","PVM","Suma su PVM"]
["1 - Techninis konsultavimas del optimalaus darbu įgyvendinimo",{"$f":"IF(Paraiska!B35=Support!A18,ROUND(VLOOKUP(W18, N18:T25, 4, FALSE)*(Paraiska!B10+Paraiska!E10),2)+IF(F13<=1,0,ROUND(IF(Paraiska!B36<D8,0,Paraiska!B36*VLOOKUP(Paraiska!B35,Support!A18:K25,11,0))*(Paraiska!B10+Paraiska!E10),2)),ROUND(VLOOKUP(W18, N18:T25, 5, FALSE)*(Paraiska!B10+Paraiska!E10),2)+IF(F13<=1,0,ROUND(IF(Paraiska!B36<D8,0,Paraiska!B36*VLOOKUP(Paraiska!B35,Support!A18:K25,11,0))*(Paraiska!B10+Paraiska!E10),2)))","v":6627.97},{"$f":"ROUND(B129*0.21,2)","v":1391.87},{"$f":"B129+C129","v":8019.84}]
["2 - Projektines uzduoties parengimas, siekiant Rangovui tinkamai pateikti pirkimo pasiulyma"]
["3 - Rangovu atliktu darbu garantiniu įsipareigojimu organizavimas"]
["4 - Rangovu sertifikavimas (patikimu tiekeju sarasas)"]
["5 - Marketingines, reklamines (patikimu rangovu saraso viesinimo) paslaugos"]
["6 - Rangovu finansinio faktoringo organizavimas",{"$f":"IF(Paraiska!B35=Support!A18,0,ROUND(VLOOKUP(W18, N18:T25, 6, FALSE)*(Paraiska!B10+Paraiska!E10),2))","v":944.92},{"$f":"ROUND(B134*0.21,2)","v":198.43},{"$f":"B134+C134","v":1143.3499999999999}]
["7 - Garantijos kastai",{"$f":"IF(Paraiska!B35=Support!A18,0,ROUND(VLOOKUP(W18, N18:T25, 7, FALSE)*(Paraiska!B10+Paraiska!E10),2))","v":4927.1099999999997},{"$f":"ROUND(B135*0.21,2)","v":1034.69},{"$f":"B135+C135","v":5961.7999999999993}]
[]
["Daugiabučio administratoriaus israsoma saskaita (Rangovui)",{"$f":"SUM(B129:B135)","v":12500},{"$f":"SUM(C129:C135)","v":2624.99},{"$f":"SUM(D129:D135)","v":15124.99}]
[]
[]
[null,"#1 Pasirinkimas"]
[]
["Finansuotojas finansuoja rangovo saskaita"]
[]
["Tarpine rangovo saskaita (skirta faktoringo kainos apskaičiavimui)","Suma","PVM","Suma su PVM"]
[null,{"$f":"IF(OR(Paraiska!B11=\"PVM moketojas\",Paraiska!B11=\"PVM moketojas - PVM neapmokestinama veikla (ne rangos darbai)\")=TRUE,Paraiska!B10+B157,Paraiska!B10+D157)","v":62500},{"$f":"IF(OR(Paraiska!B11=\"PVM moketojas\",Paraiska!B11=\"PVM moketojas - PVM neapmokestinama veikla (ne rangos darbai)\")=TRUE,B145*0.21,0)","v":13125},{"$f":"SUM(B145,C145)","v":75625}]
[]
[]
[null,"Suma","PVM","Suma su PVM"]
["1 - Techninis konsultavimas del optimalaus darbu įgyvendinimo",{"$f":"IFERROR(B129/SUM(Paraiska!B10:G10)*Paraiska!B10,0)","v":6627.9699999999993},{"$f":"ROUND(B149*0.21,2)","v":1391.87},{"$f":"B149+C149","v":8019.8399999999992}]
["2 - Projektines uzduoties parengimas, siekiant Rangovui tinkamai pateikti pirkimo pasiulyma"]
["3 - Rangovu atliktu darbu garantiniu įsipareigojimu organizavimas"]
["4 - Rangovu sertifikavimas (patikimu tiekeju sarasas)"]
["5 - Marketingines, reklamines (patikimu rangovu saraso viesinimo) paslaugos"]
["6 - Rangovu finansinio faktoringo organizavimas",{"$f":"IFERROR(B134/SUM(Paraiska!B10:G10)*Paraiska!B10,0)","v":944.92},{"$f":"ROUND(B154*0.21,2)","v":198.43},{"$f":"B154+C154","v":1143.3499999999999}]
["7 - Garantijos kastai",{"$f":"IFERROR(B135/SUM(Paraiska!B10:G10)*Paraiska!B10,0)","v":4927.1099999999997},{"$f":"ROUND(B155*0.21,2)","v":1034.69},{"$f":"B155+C155","v":5961.7999999999993}]
[]
["Daugiabučio administratoriaus israsoma saskaita (Rangovui)",{"$f":"SUM(B149:B155)","v":12500},{"$f":"SUM(C149:C155)","v":2624.99},{"$f":"SUM(D149:D155)","v":15124.989999999998}]
[]
[]
[null,"#2 Pasirinkimas"]
[]
["Finansuotojas finansuoja rangovo saskaita"]
[]
["Tarpine rangovo saskaita (skirta faktoringo kainos apskaičiavimui)","Suma","PVM","Suma su PVM"]
[null,{"$f":"IF(OR(Paraiska!B11=\"PVM moketojas\",Paraiska!B11=\"PVM moketojas - PVM neapmokestinama veikla (ne rangos darbai)\")=TRUE,Paraiska!E10+B178,Paraiska!E10+D178)","v":0},{"$f":"IF(OR(Paraiska!B11=\"PVM moketojas\",Paraiska!B11=\"PVM moketojas - PVM neapmokestinama veikla (ne rangos darbai)\")=TRUE,B165*0.21,0)","v":0},{"$f":"SUM(B165,C165)","v":0}]
[]
[]
[]
[null,"Suma","PVM","Suma su PVM"]
["1 - Techninis konsultavimas del optimalaus darbu įgyvendinimo",{"$f":"B129-B149","v":0},{"$f":"C129-C149","v":0},{"$f":"B170+C170","v":0}]
["2 - Projektines uzduoties parengimas, siekiant Rangovui tinkamai pateikti pirkimo pasiulyma",null,null,{"$f":"B171+C171","v":0}]
["3 - Rangovu atliktu darbu garantiniu įsipareigojimu organizavimas",null,null,0]
["4 - Rangovu sertifikavimas (patikimu tiekeju sarasas)",null,null,0]
["5 - Marketingines, reklamines (patikimu rangovu saraso viesinimo) paslaugos",null,null,0]
["6 - Rangovu finansinio faktoringo organizavimas",{"$f":"B134-B154","v":0},{"$f":"C134-C154","v":0},{"$f":"B175+C175","v":0}]
["7 - Garantijos kastai",{"$f":"B135-B155","v":0},{"$f":"C135-C155","v":0},{"$f":"B176+C176","v":0}]
[]
["Daugiabučio administratoriaus israsoma saskaita (Rangovui)",{"$f":"SUM(B170:B176)","v":0},{"$f":"SUM(C170:C176)","v":0},{"$f":"SUM(D170:D176)","v":0}]
[]
[]
["Ar darbams suteikiamas išsimokėjimo terminas?",{"$f":"IFERROR(IF(ROUND((IF(OR(Paraiska!$B$11=\"PVM moketojas\",Paraiska!$B$11=\"PVM moketojas - PVM neapmokestinama veikla (ne rangos darbai)\"),Paraiska!$B$10*1.21+Paraiska!$E$10*1.21,Paraiska!$B$10+Paraiska!$E$10)*VLOOKUP(Paraiska!$B$11,Support!$H$3:'Support'!$I$6,2,0)-Paraiska!$B$31-Paraiska!$B$32)/Paraiska!$B$28,2)>=Paraiska!$B$33,\"TAIP\",\"NE\"),\"NE\")","v":"TAIP"}]
[]
[]
[]
[null,"REZULTATAS"]
[]
[null,"RANGOVO ISRASOMA SASKAITA (UZSAKOVUI)"]
["Suma be PVM",{"$f":"IF(Paraiska!B47=\"FORMOJE YRA KLAIDŲ, PRAŠOME PATIKRINTI ĮVESTAS REIKŠMES\",0,IF(OR(Paraiska!B11=\"PVM moketojas\",Paraiska!B11=\"PVM moketojas - PVM neapmokestinama veikla (ne rangos darbai)\")=TRUE,Paraiska!B10+Support!B157+Support!B200,Paraiska!B10+Support!D157+Support!B202))","v":73449.77},null,null,{"$f":"IF(Paraiska!B47=\"FORMOJE YRA KLAIDŲ, PRAŠOME PATIKRINTI ĮVESTAS REIKŠMES\",0,IF(OR(Paraiska!B11=\"PVM moketojas\",Paraiska!B11=\"PVM moketojas - PVM neapmokestinama veikla (ne rangos darbai)\")=TRUE,Paraiska!E10+Support!B178+Support!E200,Paraiska!E10+Support!D178+Support!E202))","v":0}]
["PVM",{"$f":"ROUND(IF(Paraiska!B11=\"PVM moketojas\",Support!B188*0.21,0),2)","v":15424.45},null,null,{"$f":"ROUND(IF(Paraiska!B11=\"PVM moketojas\",Support!E188*0.21,0),2)","v":0}]
["Suma su PVM",{"$f":"SUM(Support!B188,Support!B189)","v":88874.22},null,null,{"$f":"SUM(Support!E188,Support!E189)","v":0}]
[]
[]
[null,"UZSAKOVO ISRASOMA SASKAITA (RANGOVUI)"]
["Suma be PVM",{"$f":"IF(Paraiska!B47=\"FORMOJE YRA KLAIDŲ, PRAŠOME PATIKRINTI ĮVESTAS REIKŠMES\",0,Support!B157)","v":12500},null,null,{"$f":"IF(Paraiska!B47=\"FORMOJE YRA KLAIDŲ, PRAŠOME PATIKRINTI ĮVESTAS REIKŠMES\",0,Support!B178)","v":0}]
["PVM",{"$f":"IF(Paraiska!B47=\"FORMOJE YRA KLAIDŲ, PRAŠOME PATIKRINTI ĮVESTAS REIKŠMES\",0,Support!C157)","v":2624.99},null,null,{"$f":"IF(Paraiska!B47=\"FORMOJE YRA KLAIDŲ, PRAŠOME PATIKRINTI ĮVESTAS REIKŠMES\",0,Support!C178)","v":0}]
["Suma su PVM",{"$f":"SUM(Support!B194:'Support'!B195)","v":15124.99},null,null,{"$f":"SUM(Support!E194,Support!E195)","v":0}]
[]
[]
[null,"FAKTORINGO SANAUDOS"]
["Suma be PVM",{"$f":"IFERROR(ROUND((Support!D145-(((Paraiska!B31+Paraiska!B32)/SUM(Paraiska!B10:'Paraiska'!G10))*Paraiska!B10))*Paraiska!B37,2),0)","v":10949.77},null,null,{"$f":"IF(Paraiska!E10=0,0,ROUND(((Support!D145+Support!D165)-Paraiska!B31-Paraiska!B32)*Paraiska!B37,2)-Support!B200)","v":0}]
["PVM",{"$f":"ROUND(Support!B200*0.21,2)","v":2299.4499999999998},null,null,{"$f":"IF(Paraiska!E10=0,0,ROUND((Support!D145+Support!D165-Paraiska!B31-Paraiska!B32)*Paraiska!B37*0.21,2)-Support!B201)","v":0}]
["Faktoringo sąnaudos",{"$f":"SUM(Support!B200,Support!B201)","v":13249.220000000001},null,null,{"$f":"SUM(Support!E200,Support!E201)","v":0}]
[]
[]
[null,"KONKURSINE KAINA"]
["Suma be PVM",{"$f":"Support!B188","v":73449.77},null,null,{"$f":"Support!E188","v":0}]
["PVM",{"$f":"ROUND(IF(Paraiska!B11=\"Ne PVM moketojas - rangos darbai\",0,Support!B188*0.21),2)","v":15424.45},null,null,{"$f":"ROUND(IF(Paraiska!B11=\"Ne PVM moketojas - rangos darbai\",0,Support!E188*0.21),2)","v":0}]
["Suma su PVM",{"$f":"SUM(Support!B206,Support!B207)","v":88874.22},null,null,{"$f":"SUM(Support!E206,Support!E207)","v":0}]
[]
[]
[]
[]
[]
["PAPILDOMA INFORMACIJA UŽSAKOVUI:"]
["Gyventojams išrašomos sąskaitos faktūros","Suma","PVM","Suma su PVM"]
["Už visą laikotarpį - KONKURSINĖ KAINA",{"$f":"SUM(Support!B188:G188)","v":73449.77},{"$f":"ROUND(IF(Paraiska!B11=\"Ne PVM moketojas - rangos darbai\",0,SUM(Support!B188:G188)*0.21),2)","v":15424.45},{"$f":"SUM(Support!B216,Support!C216)","v":88874.22}]
["Kaupiamųjų ir kitų lėšų panaudojimas",{"$f":"ROUND(IF(Support!C216>0,((Paraiska!B31+Paraiska!B32)/1.21),Paraiska!B31+Paraiska!B32),2)","v":0},{"$f":"Paraiska!D100-Paraiska!B100","v":0},{"$f":"Paraiska!B31+Paraiska!B32","v":0}]
["Likusi mokėtina suma (Konkursinė kaina minus kaupiamosios ir kitos iš anksto panaudotos lėšos)",{"$f":"Support!B216-Support!B217","v":73449.77},{"$f":"Support!C216-Support!C217","v":15424.45},{"$f":"Support!D216-Support!D217","v":88874.22}]
["Skaičiuojama įvertinus kaupiamąsias lėšas:"]
["Už vieną mėnesį (namui)",{"$f":"Support!B218/VLOOKUP(Paraiska!B35,Support!$A$18:'Support'!$J$25,10,0)","v":2040.2713888888891},{"$f":"Support!C218/VLOOKUP(Paraiska!B35,Support!$A$18:'Support'!$J$25,10,0)","v":428.45694444444445},{"$f":"Support!D218/VLOOKUP(Paraiska!B35,Support!$A$18:'Support'!$J$25,10,0)","v":2468.7283333333335}]
["Suma vienam kv. m. už visą laikotarpį",{"$f":"Support!B218/Paraiska!B28","v":12.954401070924026},{"$f":"Support!C218/Paraiska!B28","v":2.7204239250635376},{"$f":"Support!D218/Paraiska!B28","v":15.674824995987564}]
["Suma vienam kv. m. per vieną mėnesį",{"$f":"Support!B220/Paraiska!B28","v":0.35984447419233406},{"$f":"Support!C220/Paraiska!B28","v":7.556733125176493E-2},{"$f":"Support!D220/Paraiska!B28","v":0.43541180544409896}]
["Suma vidutinio dydžio patalpai (butui) už visą laikotarpį",{"$f":"IFERROR(Support!B218/Paraiska!B30,0)","v":844.25022988505748},{"$f":"IFERROR(Support!C218/Paraiska!B30,0)","v":177.2925287356322},{"$f":"IFERROR(Support!D218/Paraiska!B30,0)","v":1021.5427586206897}]
["Suma vidutinio dydžio patalpai (butui) per vieną mėnesį",{"$f":"IFERROR(Support!B220/Paraiska!B30,0)","v":23.451395274584932},{"$f":"IFERROR(Support!C220/Paraiska!B30,0)","v":4.9247924648786716},{"$f":"IFERROR(Support!D220/Paraiska!B30,0)","v":28.376187739463603}]
[]
[]
[]
[null,"Darbų antkainis"]
[]
["Pardavimo kaina klientams, Eur",null,null,null,null,null,"Rangovo siūlomos sumos riba, EUR be PVM, kada paskaičiuojamas standartinis kominsinių tarimas"]
["Darbų savikaina, Eur be PVM >=",{"$f":"MAX(G232:H238)","v":5000},null,"nemokumas",{"$f":"IF(Paraiska!B36>10%,10%,Paraiska!B36)","v":0},null,"1-5",6]
[null,null,null,null,null,null,{"$f":"ROUND(C19/B19,2)","v":2307.69},{"$f":"E19/D19","v":5000}]
[null,"PVM-PVM","nePVM-PVM","nePVM-nePVM","nePVM-PVM",null,{"$f":"ROUND(C20/B20,2)","v":2479.34},{"$f":"E20/D20","v":5000}]
["12 men. (1m.)",{"$f":"$B$231*1.21+(IF($B$231*B19<C19,C19,$B$231*B19)+IF($B$231*D19<E19,E19,$B$231*D19)+$B$231*F19+$B$231*$E$231*K19)*1.21+(($B$231+IF($B$231*B19<C19,C19,$B$231*B19)+IF($B$231*D19<E19,E19,$B$231*D19)+$B$231*F19+$B$231*$E$231*K19)*1.21*G19)*1.21","v":7930.409849236361},{"$f":"$B$231*1.21+(IF($B$231*B19<C19,C19,$B$231*B19)+IF($B$231*D19<E19,E19,$B$231*D19)+$B$231*F19+$B$231*$E$231*K19)*1.21+(($B$231+IF($B$231*B19<C19,C19,$B$231*B19)+IF($B$231*D19<E19,E19,$B$231*D19)+$B$231*F19+$B$231*$E$231*K19)*1.21*G19)*1.21","v":7930.409849236361},{"$f":"$B$231+(IF($B$231*B19<C19,C19,$B$231*B19)+IF($B$231*D19<E19,E19,$B$231*D19)+$B$231*F19+$B$231*$E$231*K19)*1.21+(($B$231+(IF($B$231*B19<C19,C19,$B$231*B19)+IF($B$231*D19<E19,E19,$B$231*D19)+$B$231*F19+$B$231*$E$231*K19)*1.21)*G19)*1.21","v":6783.449747074078},{"$f":"($B$231+(IF($B$231*B19<C19,C19,$B$231*B19)+IF($B$231*D19<E19,E19,$B$231*D19)+$B$231*F19+$B$231*$E$231*K19)*1.21+(($B$231+(IF($B$231*B19<C19,C19,$B$231*B19)+IF($B$231*D19<E19,E19,$B$231*D19)+$B$231*F19+$B$231*$E$231*K19)*1.21)*G19)*1.21)*1.21","v":8207.9741939596333},null,2654.87,5000]
["18 men. (1.5m.)",{"$f":"$B$231*1.21+(IF($B$231*B20<C20,C20,$B$231*B20)+IF($B$231*D20<E20,E20,$B$231*D20)+$B$231*F20+$B$231*$E$231*K20)*1.21+(($B$231+IF($B$231*B20<C20,C20,$B$231*B20)+IF($B$231*D20<E20,E20,$B$231*D20)+$B$231*F20+$B$231*$E$231*K20)*1.21*G20)*1.21","v":8243.8032905057607},{"$f":"$B$231*1.21+(IF($B$231*B20<C20,C20,$B$231*B20)+IF($B$231*D20<E20,E20,$B$231*D20)+$B$231*F20+$B$231*$E$231*K20)*1.21+(($B$231+IF($B$231*B20<C20,C20,$B$231*B20)+IF($B$231*D20<E20,E20,$B$231*D20)+$B$231*F20+$B$231*$E$231*K20)*1.21*G20)*1.21","v":8243.8032905057607},{"$f":"$B$231+(IF($B$231*B20<C20,C20,$B$231*B20)+IF($B$231*D20<E20,E20,$B$231*D20)+$B$231*F20+$B$231*$E$231*K20)*1.21+(($B$231+(IF($B$231*B20<C20,C20,$B$231*B20)+IF($B$231*D20<E20,E20,$B$231*D20)+$B$231*F20+$B$231*$E$231*K20)*1.21)*G20)*1.21","v":7063.3224985586958},{"$f":"($B$231+(IF($B$231*B20<C20,C20,$B$231*B20)+IF($B$231*D20<E20,E20,$B$231*D20)+$B$231*F20+$B$231*$E$231*K20)*1.21+(($B$231+(IF($B$231*B20<C20,C20,$B$231*B20)+IF($B$231*D20<E20,E20,$B$231*D20)+$B$231*F20+$B$231*$E$231*K20)*1.21)*G20)*1.21)*1.21","v":8546.6202232560208},null,2884.62,5000]
["24 men. (2m.)",8500.8164669528069,8500.8164669528069,7294.4809702673165,8826.3219740234526,null,3125,5000]
["30 men. (2.5m.)",8690.3923854918467,8690.3923854918467,7466.1635558301477,9034.0579025544794,null,3409.09,5000]
["36 men. (3m.)",8809.2131147662185,8809.2131147662185,7575.2569423658515,9166.0609002626807,null,{"$f":"ROUND(C25/B25,2)","v":3750},5000]
["42 men. (3.5m.)",9084.0915905526363,9084.0915905526363,7818.7802909120983,9460.7241520036387]
["48 men. (4m.)",9342.132161903126,9342.132161903126,8045.0427377711221,9734.5017127030569]
[]
["Darbų pabrangimas, %"]
[null,"PVM-PVM","nePVM-PVM","nePVM-nePVM","nePVM-PVM"]
["12 men. (1m.)",{"$f":"(B234-$B$231*1.21)/($B$231*1.21)","v":0.31081154532832411},{"$f":"(C234-$B$231)/($B$231)","v":0.58608196984727223},{"$f":"(D234-$B$231)/($B$231)","v":0.35668994941481558},{"$f":"(E234-$B$231)/($B$231)","v":0.64159483879192669}]
["18 men. (1.5m.)",{"$f":"(B235-$B$231*1.21)/($B$231*1.21)","v":0.36261211413318362},{"$f":"(C235-$B$231)/($B$231)","v":0.64876065810115213},{"$f":"(D235-$B$231)/($B$231)","v":0.41266449971173913},0.70932404465120413]
["24 men. (2m.)",0.40509363090129041,0.70016329339056138,0.45889619405346327,0.76526439480469055]
["30 men. (2.5m.)",0.43642849346972673,0.73807847709836938,0.49323271116602957,0.80681158051089585]
["36 men. (3m.)",0.45606828343243283,0.76184262295324368,0.51505138847317034,0.83321218005253617]
["42 men. (3.5m.)",0.50150274224010516,0.8168183181105273,0.56375605818241969,0.89214483040072778]
["48 men. (4m.)",0.54415407634762414,0.86842643238062522,0.6090085475542244,0.94690034254061139]
[]
[]
[]
["Faktinis antkainis iš Paraiška",{"$f":"IF(OR(AND(Paraiska!B6 = 1, Paraiska!B9=\"\"),AND(Paraiska!B6 = 2, Paraiska!B9=\"\", Paraiska!E9=\"\")),IFERROR(IF(Paraiska!B11=\"PVM moketojas\", (Paraiska!D99-(Paraiska!B10+Paraiska!E10)*1.21)/((Paraiska!B10+Paraiska!E10)*1.21),(Paraiska!D99-(Paraiska!B10+Paraiska!E10))/(Paraiska!B10+Paraiska!E10)),0),IFERROR(IF(Paraiska!B11=\"PVM moketojas\", (Paraiska!D99-(Paraiska!B9+Paraiska!E9)*1.21)/((Paraiska!B9+Paraiska!E9)*1.21),(Paraiska!D99-(Paraiska!B9+Paraiska!E9))/(Paraiska!B9+Paraiska!E9)),0))","v":0.46899537190082646},null,"Faktinio ir standartinio antkainio skirtumas",{"$f":"ROUND(IF(OR(AND(Paraiska!B6=1,Paraiska!B9=\"\"),AND(Paraiska!B6=2,Paraiska!B9=\"\",Paraiska!E9=\"\")),IFERROR(IF(Paraiska!B11=\"PVM moketojas\",(Paraiska!D99-(Paraiska!B10+Paraiska!E10)*1.21)/((Paraiska!B10+Paraiska!E10)*1.21),(Paraiska!D99-(Paraiska!B10+Paraiska!E10))/(Paraiska!B10+Paraiska!E10)),0),IFERROR(IF(Paraiska!B11=\"PVM moketojas\",(Paraiska!D99-(Paraiska!B9+Paraiska!E9)*1.21)/((Paraiska!B9+Paraiska!E9)*1.21),(Paraiska!D99-(Paraiska!B9+Paraiska!E9))/(Paraiska!B9+Paraiska!E9)),0))-IFERROR(IF(Paraiska!B11=\"PVM moketojas\",VLOOKUP(Paraiska!B35,Support!$A$244:$E$250,2,FALSE),IF(Paraiska!B11=\"PVM moketojas - PVM neapmokestinama veikla (ne rangos darbai)\",VLOOKUP(Paraiska!B35,Support!$A$244:$E$250,3,FALSE),IF(Paraiska!B11=\"Ne PVM moketojas - rangos darbai\",VLOOKUP(Paraiska!B35,Support!$A$244:$E$250,4,FALSE),IF(Paraiska!B11=\"Ne PVM moketojas - ne rangos darbai\",VLOOKUP(Paraiska!B35,Support!$A$244:$E$250,5,FALSE))))),0),0)","v":0}]

{"sheet":"Paraiska","index":1,"n_rows":207,"n_cols":22,"rows_kept":207,"cut":false,"hidden":false,"merged":[[6,16,8,17],[202,8,202,10],[177,8,181,8],[177,9,181,9],[177,10,181,10],[195,8,195,10],[164,8,164,10],[137,8,137,10],[138,8,138,10],[139,8,139,10],[140,8,140,10],[141,8,141,10],[142,8,142,10],[143,8,143,10],[144,8,144,10],[145,8,145,10],[153,8,153,10],[146,8,146,10],[147,8,147,10],[148,8,148,10],[152,8,152,10],[154,8,154,10],[155,8,155,10],[186,8,186,10],[189,8,189,10],[192,8,192,10],[193,8,193,10],[194,8,194,10],[4,1,4,6],[201,8,201,10],[6,1,6,6],[6,8,6,10],[7,1,7,3],[7,4,7,6],[9,4,9,6],[8,8,8,10],[189,1,189,3],[189,4,189,6],[199,1,199,3],[177,1,181,1],[177,2,181,2],[177,3,181,3],[175,1,175,6],[186,1,186,6],[187,1,187,3],[187,4,187,6],[116,8,116,10],[112,8,112,10],[152,1,152,6],[148,1,148,6],[198,8,198,10],[177,4,181,4],[83,1,83,3],[141,1,141,6],[140,1,140,6],[139,1,139,6],[115,4,115,6],[113,1,113,6],[112,1,112,6],[85,1,85,3],[121,8,121,10],[120,8,120,10],[118,8,118,10],[110,1,110,6],[130,1,130,3],[130,4,130,6],[88,8,88,10],[134,1,134,6],[187,8,187,10],[188,8,188,10],[200,8,200,10],[199,8,199,10],[177,5,181,5],[177,6,181,6],[199,4,199,6],[200,4,200,6],[175,8,175,10],[131,8,131,10],[132,8,132,10],[133,8,133,10],[134,8,134,10],[135,8,135,10],[136,8,136,10],[155,4,155,6],[154,4,154,6],[153,4,153,6],[138,1,138,6],[137,1,137,6],[147,1,147,6],[146,1,146,6],[145,1,145,6],[144,1,144,6],[143,1,143,6],[188,1,188,3],[133,1,133,6],[202,1,202,3],[192,1,192,6],[193,1,193,3],[193,4,193,6],[194,1,194,3],[194,4,194,6],[195,1,195,3],[195,4,195,6],[198,1,198,6],[201,4,201,6],[202,4,202,6],[200,1,200,3],[201,1,201,3],[154,1,154,3],[155,1,155,3],[142,1,142,6],[136,1,136,6],[135,1,135,6],[153,1,153,3],[188,4,188,6],[3,8,3,10],[62,8,62,10],[58,8,58,10],[117,8,117,10],[114,8,114,10],[113,8,113,10],[110,8,110,10],[81,8,81,10],[80,8,80,10],[89,8,89,10],[9,8,9,10],[10,8,10,10],[11,8,11,10],[19,8,19,10],[28,8,28,10],[29,8,29,10],[7,8,7,10],[74,8,74,10],[75,8,75,10],[82,8,82,10],[76,8,76,10],[92,8,92,10],[111,8,111,10],[84,8,84,10],[23,1,23,6],[31,8,31,10],[33,1,33,6],[32,1,32,6],[39,8,39,10],[36,8,36,10],[37,8,37,10],[34,8,34,10],[35,8,35,10],[39,4,39,6],[25,8,25,10],[24,8,24,10],[23,8,23,10],[30,8,30,10],[38,4,38,6],[24,1,24,6],[92,4,92,6],[111,1,111,6],[68,8,68,10],[87,8,87,10],[71,8,71,10],[90,8,90,10],[86,8,86,10],[85,8,85,10],[32,8,32,10],[33,8,33,10],[91,1,91,3],[10,1,10,6],[21,1,21,6],[8,1,8,3],[26,4,26,6],[132,1,132,3],[89,1,89,3],[88,1,88,3],[87,1,87,3],[87,4,87,6],[101,1,101,3],[86,4,86,6],[121,1,121,6],[120,1,120,6],[118,1,118,6],[117,1,117,6],[116,1,116,6],[114,1,114,6],[131,1,131,6],[132,4,132,6],[92,1,92,3],[90,4,90,6],[89,4,89,6],[88,4,88,6],[90,1,90,3],[86,1,86,3],[77,1,77,3],[85,4,85,6],[31,1,31,6],[30,1,30,6],[29,1,29,6],[38,1,38,3],[84,1,84,3],[82,1,82,3],[36,1,36,6],[51,1,51,3],[51,4,51,6],[76,1,76,3],[70,1,70,3],[69,1,69,3],[77,4,77,6],[76,4,76,6],[75,4,75,6],[71,4,71,6],[70,4,70,6],[69,4,69,6],[0,1,0,6],[12,1,12,6],[20,1,20,6],[22,1,22,6],[58,4,58,6],[59,4,59,6],[81,1,81,3],[37,1,37,6],[68,1,68,6],[65,4,65,6],[39,1,39,3],[9,1,9,3],[11,1,11,3],[59,1,59,3],[58,1,58,3],[62,1,62,6],[81,4,81,6],[8,4,8,6],[11,4,11,6],[19,1,19,6],[80,1,80,6],[74,1,74,6],[3,1,3,6],[5,1,5,6],[40,11,40,19],[83,8,83,10],[91,8,91,10],[64,1,64,3],[75,1,75,3],[71,1,71,3],[84,4,84,6],[82,4,82,6],[65,8,65,10],[54,8,54,10],[70,8,70,10],[69,8,69,10],[64,8,64,10],[63,8,63,10],[57,8,57,10],[42,8,42,10],[56,8,56,10],[59,8,59,10],[40,8,40,10],[63,4,63,6],[63,1,63,3],[64,4,64,6],[77,8,77,10],[65,1,65,3],[20,8,20,10],[41,8,41,10],[28,1,28,6],[26,1,26,3],[54,1,54,6],[56,1,56,6],[57,4,57,6],[34,1,34,6],[41,1,41,6],[42,1,42,6],[35,1,35,6],[57,1,57,3],[27,1,27,6],[52,1,52,3],[40,1,40,6],[27,8,27,10],[38,8,38,10],[26,8,26,10],[22,8,22,10],[21,8,21,10],[25,1,25,3],[25,4,25,6],[52,4,52,6],[52,8,52,10]]}
[null,"Pildomi laukai"]
[]
[]
["PRADZIA","PILDOMA INDORMACIJA",null,null,null,null,null,null,"PILDOMA INDORMACIJA",null,null,null,null,null,null,null,null,null,null,null,null,"X"]
["AR PAGEIDAUJAMA GAUTI IŠSIMOKĖJIMĄ DARBAMS?","TAIP"]
["Įveskite skirtingų atliekamų darbų skaičių (skirtingų mišrių PVM arba garantijos taikymas)",1]
[null,"RANGOVO INFORMACIJA",null,null,null,null,null,null,"RANGOVO INFORMACIJA",null,null,null,null,null,null,null,"v20240301_V"]
[null,null,null,null,"Darbas #2",null,null,null,"Darbas #1 ir Darbas #2"]
["Rangovo siūloma suma, EUR be PVM",null,null,null,null,null,null,null,{"$f":"IF(SUM(B9:G9)=0,\"\",SUM(B9:G9))","v":""}]
["Prognozuojama Rangovo siūloma suma, EUR be PVM",50000,null,null,null,null,null,null,{"$f":"IF(SUM(B10:G10)=0,\"\",SUM(B10:G10))","v":50000}]
["Darbų vykdytojo PVM mokėtojo statusas","PVM moketojas",null,null,null,null,null,null,{"$f":"B11","v":"PVM moketojas"}]
["Ar taikomas atvirkštinis PVM? Reikšmė NE arba TAIP (galima tik kai rangovas yra PVM mokėtojas)",{"$f":"IFERROR(IF(OR(B11=\"PVM moketojas - PVM neapmokestinama veikla (ne rangos darbai)\",B11=\"Ne PVM moketojas - rangos darbai\",B11=\"Ne PVM moketojas - ne rangos darbai\"),\"NE\",IF(VLOOKUP(B27,'Darbu Sarasas'!$F$1:$H$55,3,FALSE)=\"Taikomas APVM\",\"TAIP\",\"NE\")),\"TAIP\")","v":"TAIP"},{"$f":"OFFSET(Support!$A$3,1,MATCH($B$11,Support!$A$3:'Support'!$D$3,0)-1,1,1)","v":"NE"},{"$f":"OFFSET(Support!$A$3,1,MATCH($B$11,Support!$A$3:'Support'!$D$3,0)-1,1,1)","v":"NE"},{"$f":"IFERROR(IF(OR(B11=\"PVM moketojas - PVM neapmokestinama veikla (ne rangos darbai)\",B11=\"Ne PVM moketojas - rangos darbai\",B11=\"Ne PVM moketojas - ne rangos darbai\"),\"NE\",IF(VLOOKUP(E27,'Darbu Sarasas'!$F$1:$H$53,3,FALSE)=\"Taikomas APVM\",\"TAIP\",\"NE\")),\"TAIP\")","v":"NE"},{"$f":"OFFSET(Support!$A$3,1,MATCH($B$11,Support!$A$3:'Support'!$D$3,0)-1,1,1)","v":"NE"},{"$f":"OFFSET(Support!$A$3,1,MATCH($B$11,Support!$A$3:'Support'!$D$3,0)-1,1,1)","v":"NE"},null,{"$f":"IF(OR(B12=\"TAIP\",E12=\"TAIP\")=TRUE,\"TAIP\",\"NE\")","v":"TAIP"}]
["Rangovo tipas","Ne PortalPRO"]
[null,{"$f":"OFFSET(Support!$A$3,1,MATCH($B$11,Support!$A$3:'Support'!$D$3,0)-1,1,1)","v":"NE"},{"$f":"OFFSET(Support!$A$7,1,MATCH($D$15,Support!$A$7:'Support'!$B$7,0)-1,1,1)","v":"12 men. (1m.)"},{"$f":"Support!$D$7","v":0.5}]
[null,{"$f":"IF(VLOOKUP(B11&B12,Support!F3:'Support'!G10,2,FALSE)=\"OK\",\"\",\"KLAIDA: Atvirkštinį PVM galima rinktis tik tuo atveju, jei rangovas yra PVM mokėtojas\")","v":""},{"$f":"Support!D220/$B$28","v":0.43541180544409896},{"$f":"IFERROR(IF(ROUND((IF(OR($B$11=\"PVM moketojas\",$B$11=\"PVM moketojas - PVM neapmokestinama veikla (ne rangos darbai)\"),$B$10*1.21+$E$10*1.21,$B$10+$E$10)*VLOOKUP($B$11,Support!$H$3:'Support'!$I$6,2,0)-$B$31-$B$32)/$B$28,2)>=$B$33,\"TAIP\",\"NE\"),\"NE\")","v":"TAIP"}]
[null,{"$f":"IF(VLOOKUP(B11&E12,Support!F3:'Support'!G10,2,FALSE)=\"OK\",\"\",\"KLAIDA: Atvirkštinį PVM galima rinktis tik tuo atveju, jei rangovas yra PVM mokėtojas\")","v":""},null,{"$f":"IF($B$35=\"Be issimokejimo termino\",\"NE\",\"TAIP\")","v":"TAIP"}]
[]
[]
[]
[null,"UZSAKOVO INFORMACIJA",null,null,null,null,null,null,"UŽSAKOVO INFORMACIJA"]
["Administratoriaus pavadinimas","UAB „Mano Bustas NPC“",null,null,null,null,null,null,{"$f":"IF(B21=0,\"\",B21)","v":"UAB „Mano Bustas NPC“"}]
["Iniciatorius","Laura Petrulė",null,null,null,null,null,null,{"$f":"IF(B22=0,\"\",B22)","v":"Laura Petrulė"}]
["Unikalus pranešimo numeris","V24-0083440-4",null,null,null,null,null,null,{"$f":"IF(B23=\"\",\"\",B23)","v":"V24-0083440-4"}]
["Namo valdymo forma","Bendrija",null,null,null,null,null,null,{"$f":"IF(B24=0,\"\",B24)","v":"Bendrija"}]
["Namo adresas","Linkmenų 5/66",null,null,null,null,null,null,{"$f":"IF(B25=0,\"\",B25)","v":"Linkmenų 5/66"}]
["Darbо tipo grupė",{"$f":"IF(B27=\"Pasirinkti darbo tipą\",\"\",VLOOKUP(B27,'Darbu Sarasas'!$F$1:$G$55,2,FALSE))","v":"Stogai"},null,null,{"$f":"IF(E27=\"Pasirinkti darbo tipą\",\"\",VLOOKUP(E27,'Darbu Sarasas'!$F$1:$G$53,2,FALSE))","v":""},null,null,null,{"$f":"B26","v":"Stogai"}]
["Darbо tipas","Prilydomos stogo dangos keitimas, apšiltinimas",null,null,"Pasirinkti darbo tipą",null,null,null,{"$f":"IF(B27=\"\",\"\",B27)","v":"Prilydomos stogo dangos keitimas, apšiltinimas"}]
["Naudingas namo/laiptinės plotas, kv. m",5669.87,null,null,null,null,null,null,{"$f":"B28","v":5669.87}]
["Iš jo naudingas namo/laiptinės plotas kv. m, tenkantis jur. klientams",null,null,null,null,null,null,null,{"$f":"B29","v":0}]
["Namo/laiptinės butų skaičius, vnt.",87,null,null,null,null,null,null,{"$f":"IF(B30=0,\"\",B30)","v":87}]
[{"$f":"IF(B5=\"NE\",\"Panaudojamos kaupiamosios lėšos ir kitos iš anksto sumokamos sumos, Eur\", \"Panaudojama kaupiamųjų lėšų suma\")","v":"Panaudojama kaupiamųjų lėšų suma"},0,null,null,null,null,null,null,{"$f":"IF(B31=0,\"\",B31)","v":""}]
["Panaudojamos kitos iš anksto sumokamos sumos, Eur",0,null,null,null,null,null,null,{"$f":"IF(B32=0,\"\",B32)","v":""}]
["Minimali darbų kaina vienam kv.m. taikant išsimokėjimą",1.5,null,null,null,null,null,null,1.5]
["Ar darbams suteikiamas išsimokėjimo terminas?",{"$f":"IFERROR(IF(ROUND((IF(OR($B$11=\"PVM moketojas\",$B$11=\"PVM moketojas - PVM neapmokestinama veikla (ne rangos darbai)\"),$B$10*1.21+$E$10*1.21,$B$10+$E$10)*VLOOKUP($B$11,Support!$H$3:'Support'!$I$6,2,0)-$B$31-$B$32)/$B$28,2)>=$B$33,\"TAIP\",\"NE\"),\"NE\")","v":"TAIP"},{"$f":"IFERROR(IF(ROUND((IF(OR($B$11=\"PVM moketojas\",$B$11=\"PVM moketojas - PVM neapmokestinama veikla (ne rangos darbai)\"),$B$10*1.21+$E$10*1.21,$B$10+$E$10)*VLOOKUP($B$11,Support!$H$3:'Support'!$I$6,2,0)-$B$31-$B$32)/$B$28,2)>=$B$33,\"TAIP\",\"NE\"),\"NE\")","v":"TAIP"},{"$f":"IFERROR(IF(ROUND((IF(OR($B$11=\"PVM moketojas\",$B$11=\"PVM moketojas - PVM neapmokestinama veikla (ne rangos darbai)\"),$B$10*1.21+$E$10*1.21,$B$10+$E$10)*VLOOKUP($B$11,Support!$H$3:'Support'!$I$6,2,0)-$B$31-$B$32)/$B$28,2)>=$B$33,\"TAIP\",\"NE\"),\"NE\")","v":"TAIP"},{"$f":"IFERROR(IF(ROUND((IF(OR($B$11=\"PVM moketojas\",$B$11=\"PVM moketojas - PVM neapmokestinama veikla (ne rangos darbai)\"),$B$10*1.21+$E$10*1.21,$B$10+$E$10)*VLOOKUP($B$11,Support!$H$3:'Support'!$I$6,2,0)-$B$31-$B$32)/$B$28,2)>=$B$33,\"TAIP\",\"NE\"),\"NE\")","v":"TAIP"},{"$f":"IFERROR(IF(ROUND((IF(OR($B$11=\"PVM moketojas\",$B$11=\"PVM moketojas - PVM neapmokestinama veikla (ne rangos darbai)\"),$B$10*1.21+$E$10*1.21,$B$10+$E$10)*VLOOKUP($B$11,Support!$H$3:'Support'!$I$6,2,0)-$B$31-$B$32)/$B$28,2)>=$B$33,\"TAIP\",\"NE\"),\"NE\")","v":"TAIP"},{"$f":"IFERROR(IF(ROUND((IF(OR($B$11=\"PVM moketojas\",$B$11=\"PVM moketojas - PVM neapmokestinama veikla (ne rangos darbai)\"),$B$10*1.21+$E$10*1.21,$B$10+$E$10)*VLOOKUP($B$11,Support!$H$3:'Support'!$I$6,2,0)-$B$31-$B$32)/$B$28,2)>=$B$33,\"TAIP\",\"NE\"),\"NE\")","v":"TAIP"},null,"TAIP"]
["Išsimokėjimo terminas (paskaičiuojamas automatiškai)","36 men. (3m.)",{"$f":"OFFSET(Support!$A$7,1,MATCH($D$15,Support!$A$7:'Support'!$B$7,0)-1,1,1)","v":"12 men. (1m.)"},{"$f":"OFFSET(Support!$A$7,1,MATCH($D$15,Support!$A$7:'Support'!$B$7,0)-1,1,1)","v":"12 men. (1m.)"},{"$f":"OFFSET(Support!$A$7,1,MATCH($D$15,Support!$A$7:'Support'!$B$7,0)-1,1,1)","v":"12 men. (1m.)"},{"$f":"OFFSET(Support!$A$7,1,MATCH($D$15,Support!$A$7:'Support'!$B$7,0)-1,1,1)","v":"12 men. (1m.)"},{"$f":"OFFSET(Support!$A$7,1,MATCH($D$15,Support!$A$7:'Support'!$B$7,0)-1,1,1)","v":"12 men. (1m.)"},null,"36 men. (3m.)"]
["Objekto nemokumas, %",null,null,null,null,null,null,null,{"$f":"IF(B36=\"\",\"\",B36)","v":""}]
["Faktoringo kaina, %",{"$f":"VLOOKUP(B35,Support!A18:'Support'!G25,7,0)","v":0.14479037575786446},null,null,null,null,null,null,{"$f":"B37","v":0.14479037575786446}]
["Faktoringo kaina + PVM, EUR",{"$f":"SUM(B72:G72)","v":13249.220000000001},null,null,null,null,null,null,{"$f":"B38","v":13249.220000000001}]
["Ar darbams taikomas garantinis laikotarpis?",{"$f":"IFERROR(IF('Darbu Sarasas'!$N$4=\"NE\",VLOOKUP(Paraiska!$B$27,'Darbu Sarasas'!$F$2:$I$55,4,FALSE),IF('Darbu Sarasas'!$N$4=\"TAIP\",VLOOKUP($B$52,Support!$N$35:$O$37,2,FALSE),\"NE\")),\"NE\")","v":"TAIP"},null,null,{"$f":"IF($E$27=Support!$AA$3,\"NE\",IF(OR($E$52=Support!$O$3,Paraiska!$E$52=Support!$O$4,Support!$AE$3=\"TAIP\"),VLOOKUP(Paraiska!$E$27,'Darbu Sarasas'!$F$2:$I$55,4,FALSE),IF(Paraiska!$E$52=Support!$O$5,\"NE\",\"\")))","v":"NE"},null,null,null,{"$f":"IF(OR(B39=\"TAIP\",E39=\"TAIP\")=TRUE,\"TAIP\",\"NE\")","v":"TAIP"}]
["Garantijos suma, sulaikoma rangovui",{"$f":"ROUND(IF(B39=\"TAIP\",B58*VLOOKUP(B35,Support!A18:'Support'!H25,8,0),0),2)","v":2937.99},null,null,{"$f":"ROUND(IF(E39=\"TAIP\",E58*VLOOKUP(B35,Support!A18:'Support'!H25,8,0),0),2)","v":0},null,null,null,{"$f":"SUM(B40,E40)","v":2937.99}]
["Netaikyti išsimokėjimo (klientų pageidavimu) (galima tik kai įvesta Prognozuojama Rangovo siūloma suma, kuri <=3300 EUR, ir Objekto nemokumas, kuris <=10%)","NE",{"$f":"IFERROR(IF(ROUND((IF(OR($B$11=\"PVM moketojas\",$B$11=\"PVM moketojas - PVM neapmokestinama veikla (ne rangos darbai)\"),$B$10*1.21+$E$10*1.21,$B$10+$E$10)*VLOOKUP($B$11,Support!$H$3:'Support'!$I$6,2,0)-$B$31-$B$32)/$B$28,2)>=$B$33,\"TAIP\",\"NE\"),\"NE\")","v":"TAIP"},{"$f":"IFERROR(IF(ROUND((IF(OR($B$11=\"PVM moketojas\",$B$11=\"PVM moketojas - PVM neapmokestinama veikla (ne rangos darbai)\"),$B$10*1.21+$E$10*1.21,$B$10+$E$10)*VLOOKUP($B$11,Support!$H$3:'Support'!$I$6,2,0)-$B$31-$B$32)/$B$28,2)>=$B$33,\"TAIP\",\"NE\"),\"NE\")","v":"TAIP"},{"$f":"IFERROR(IF(ROUND((IF(OR($B$11=\"PVM moketojas\",$B$11=\"PVM moketojas - PVM neapmokestinama veikla (ne rangos darbai)\"),$B$10*1.21+$E$10*1.21,$B$10+$E$10)*VLOOKUP($B$11,Support!$H$3:'Support'!$I$6,2,0)-$B$31-$B$32)/$B$28,2)>=$B$33,\"TAIP\",\"NE\"),\"NE\")","v":"TAIP"},{"$f":"IFERROR(IF(ROUND((IF(OR($B$11=\"PVM moketojas\",$B$11=\"PVM moketojas - PVM neapmokestinama veikla (ne rangos darbai)\"),$B$10*1.21+$E$10*1.21,$B$10+$E$10)*VLOOKUP($B$11,Support!$H$3:'Support'!$I$6,2,0)-$B$31-$B$32)/$B$28,2)>=$B$33,\"TAIP\",\"NE\"),\"NE\")","v":"TAIP"},{"$f":"IFERROR(IF(ROUND((IF(OR($B$11=\"PVM moketojas\",$B$11=\"PVM moketojas - PVM neapmokestinama veikla (ne rangos darbai)\"),$B$10*1.21+$E$10*1.21,$B$10+$E$10)*VLOOKUP($B$11,Support!$H$3:'Support'!$I$6,2,0)-$B$31-$B$32)/$B$28,2)>=$B$33,\"TAIP\",\"NE\"),\"NE\")","v":"TAIP"},null,{"$f":"B41","v":"NE"},null,null,{"$f":"IF(AND(B41=\"TAIP\",B34=\"TAIP\"),\"Netaikyti išsimokėjimo (klientų pageidavimu) negalima, nes Prognozuojama Rangovo siūloma suma ir/ar Objekto nemokumas neatitinka sąlygų.\",\"\")","v":""}]
["Reikalingas kitoks išsimokėjimo terminas, nei kad parenka skaičiuoklė (klientų pageidavimu)","NE",null,null,null,null,null,null,{"$f":"B42","v":"NE"}]
["Ar reikia fin. skyriaus patvirtinimo?",{"$f":"IF(Support!B181=\"TAIP\",IF(B41=\"TAIP\",\"TAIP, inicijuokite sutrumpintą DVS procesą\",IF(OR(B36>0.1,D105>0.5,D107>50,B42=\"TAIP\",Support!E254>0),\"TAIP, inicijuokite pilną DVS procesą\",\"TAIP, inicijuokite sutrumpintą DVS procesą\")),\"NE, nereikia inicijuoti DVS proceso\")","v":"TAIP, inicijuokite sutrumpintą DVS procesą"},null,null,null,null,null,null,{"$f":"B43","v":"TAIP, inicijuokite sutrumpintą DVS procesą"}]
[]
[null,{"$f":"IF(B34=\"NE\",\"Išsimokėjimas nesuteikiamas, klientams už darbą priskaitoma per vieną mėnesį.\",\"Išsimokėjimo terminas paskaičiuojamas automatiškai, optimizuojant pardavimo kainą.\")","v":"Išsimokėjimo terminas paskaičiuojamas automatiškai, optimizuojant pardavimo kainą."}]
[null,{"$f":"IF(VLOOKUP(B35,Support!A18:'Support'!I25,9,0)=B34,\"\",\"KLAIDA: NETINKAMA REIKŠMĖ. Patikslinkite išsimokėjimo terminą\")","v":""}]
[null,{"$f":"IF(OR(B15=\"KLAIDA: Atvirkštinį PVM galima rinktis tik tuo atveju, jei rangovas yra PVM mokėtojas\",B16=\"KLAIDA: Atvirkštinį PVM galima rinktis tik tuo atveju, jei rangovas yra PVM mokėtojas\",B46=\"KLAIDA: NETINKAMA REIKŠMĖ. Patikslinkite išsimokėjimo terminą\")=TRUE,\"FORMOJE YRA KLAIDŲ, PRAŠOME PATIKRINTI ĮVESTAS REIKŠMES\",\"\")","v":""}]
[null,{"$f":"IF(B36<=10%,\"\",\"Darbų finansavimas išsimokėtinai nėra galimas. Nemokumas didesnis kaip 10 proc.\")","v":""}]
[]
[]
[]
["Ar taikomas garantinis laikotarpis (draudimas)?*","Taikomas garantinis sulaikymas",null,null,"Pasirinkite garantijos (draudimo) taikymą"]
["Susigrąžinama PVM dydžio suma, EUR",{"$f":"IF(B9=0,0,IF(OR($B$11=\"PVM moketojas\",$B$11=\"PVM moketojas - PVM neapmokestinama veikla (ne rangos darbai)\"),$B$71+$B$65,0))","v":0},null,null,{"$f":"IF(E9=0,0,IF(OR($B$11=\"PVM moketojas\",$B$11=\"PVM moketojas - PVM neapmokestinama veikla (ne rangos darbai)\"),$E$90+$E$71+$E$65,$E$90))","v":0},null,null,null,{"$f":"SUM(B53,E53)","v":0}]
[]
[null,"REZULTATAS",null,null,null,null,null,null,"REZULTATAS"]
[]
[null,"RANGOVO ISRASOMA SASKAITA (UZSAKOVUI)",null,null,null,null,null,null,"RANGOVO IŠRAŠOMA SĄSKAITA (UŽSAKOVUI)"]
["Suma be PVM",{"$f":"IF(OR(AND(Paraiska!B6 = 1, Paraiska!B9=\"\"),AND(Paraiska!B6 = 2, Paraiska!B9=\"\", Paraiska!E9=\"\")),IF(B47=\"FORMOJE YRA KLAIDŲ, PRAŠOME PATIKRINTI ĮVESTAS REIKŠMES\",0,IF(OR(B11=\"PVM moketojas\",B11=\"PVM moketojas - PVM neapmokestinama veikla (ne rangos darbai)\")=TRUE,B10+Support!B65+B70,B10+Support!D65+B72)),IF(B47=\"FORMOJE YRA KLAIDŲ, PRAŠOME PATIKRINTI ĮVESTAS REIKŠMES\",0,IF(OR(B11=\"PVM moketojas\",B11=\"PVM moketojas - PVM neapmokestinama veikla (ne rangos darbai)\")=TRUE,B9+Support!B65+B70,B9+Support!D65+B72)))","v":73449.77},null,null,{"$f":"IF(OR(AND(Paraiska!B6 = 1, Paraiska!B9=\"\"),AND(Paraiska!B6 = 2, Paraiska!B9=\"\", Paraiska!E9=\"\")),IF(B47=\"FORMOJE YRA KLAIDŲ, PRAŠOME PATIKRINTI ĮVESTAS REIKŠMES\",0,IF(OR(B11=\"PVM moketojas\",B11=\"PVM moketojas - PVM neapmokestinama veikla (ne rangos darbai)\")=TRUE,E10+Support!B86+E70,E10+Support!D86+E72)),IF(B47=\"FORMOJE YRA KLAIDŲ, PRAŠOME PATIKRINTI ĮVESTAS REIKŠMES\",0,IF(OR(B11=\"PVM moketojas\",B11=\"PVM moketojas - PVM neapmokestinama veikla (ne rangos darbai)\")=TRUE,E9+Support!B86+E70,E9+Support!D86+E72)))","v":0},null,null,null,{"$f":"SUM(B58:G58)","v":73449.77}]
["PVM",{"$f":"ROUND(IF(B11=\"PVM moketojas\",B58*0.21,0),2)","v":15424.45},null,null,{"$f":"ROUND(IF(B11=\"PVM moketojas\",E58*0.21,0),2)","v":0},null,null,null,{"$f":"SUM(B59:G59)","v":15424.45}]
["Suma su PVM",{"$f":"SUM(B58,B59)","v":88874.22},null,null,{"$f":"SUM(E58,E59)","v":0},null,null,null,{"$f":"SUM(I58,I59)","v":88874.22}]
[]
[]
[null,"UZSAKOVO ISRASOMA SASKAITA (RANGOVUI)",null,null,null,null,null,null,"UŽSAKOVO IŠRAŠOMA SĄSKAITA (RANGOVUI)"]
["Suma be PVM",{"$f":"IF(B47=\"FORMOJE YRA KLAIDŲ, PRAŠOME PATIKRINTI ĮVESTAS REIKŠMES\",0,Support!B65)","v":12500},null,null,{"$f":"IF(B47=\"FORMOJE YRA KLAIDŲ, PRAŠOME PATIKRINTI ĮVESTAS REIKŠMES\",0,Support!B86)","v":0},null,null,null,{"$f":"SUM(B64:G64)","v":12500}]
["PVM",{"$f":"IF(B47=\"FORMOJE YRA KLAIDŲ, PRAŠOME PATIKRINTI ĮVESTAS REIKŠMES\",0,Support!C65)","v":2624.99},null,null,{"$f":"IF(B47=\"FORMOJE YRA KLAIDŲ, PRAŠOME PATIKRINTI ĮVESTAS REIKŠMES\",0,Support!C86)","v":0},null,null,null,{"$f":"SUM(B65:G65)","v":2624.99}]
["Suma su PVM",{"$f":"SUM(B64:D65)","v":15124.99},null,null,{"$f":"SUM(E64:G65)","v":0},null,null,null,{"$f":"SUM(I64:K65)","v":15124.99}]
[]
[]
[null,"FAKTORINGO SANAUDOS",null,null,null,null,null,null,"FAKTORINGO SĄNAUDOS"]
["Suma be PVM",{"$f":"IF(OR(AND(Paraiska!B6 = 1, Paraiska!B9=\"\"),AND(Paraiska!B6 = 2, Paraiska!B9=\"\", Paraiska!E9=\"\")),IFERROR(ROUND((Support!D53-(((B31+B32)/SUM(B10:G10))*B10))*B37,2),0),IFERROR(ROUND((Support!D53-(((B31+B32)/SUM(B9:G9))*B9))*B37,2),0))","v":10949.77},null,null,{"$f":"IF(OR(AND(Paraiska!B6 = 1, Paraiska!B9=\"\"),AND(Paraiska!B6 = 2, Paraiska!B9=\"\", Paraiska!E9=\"\")),IF(E10=0,0,ROUND(((Support!D53+Support!D73)-B31-B32)*B37,2)-B70),IF(E9=0,0,ROUND(((Support!D53+Support!D73)-B31-B32)*B37,2)-B70))","v":0},null,null,null,{"$f":"SUM(B70:G70)","v":10949.77}]
["PVM",{"$f":"ROUND(B70*0.21,2)","v":2299.4499999999998},null,null,{"$f":"IF(OR(AND(Paraiska!B6 = 1, Paraiska!B9=\"\"),AND(Paraiska!B6 = 2, Paraiska!B9=\"\", Paraiska!E9=\"\")),IF(E10=0,0,ROUND((Support!D53+Support!D73-B31-B32)*B37*0.21,2)-B71),IF(E9=0,0,ROUND((Support!D53+Support!D73-B31-B32)*B37*0.21,2)-B71))","v":0},null,null,null,{"$f":"SUM(B71:G71)","v":2299.4499999999998}]
["Faktoringo sąnaudos",{"$f":"SUM(B70:D71)","v":13249.220000000001},null,null,{"$f":"SUM(E70:G71)","v":0},null,null,null,{"$f":"SUM(B72:G72)","v":13249.220000000001}]
[]
[]
[null,"KONKURSINE KAINA",null,null,null,null,null,null,"KONKURSINĖ KAINA"]
["Suma be PVM",{"$f":"B58","v":73449.77},null,null,{"$f":"E58","v":0},null,null,null,{"$f":"SUM(B76:G76)","v":73449.77}]
["PVM",{"$f":"ROUND(IF(B11=\"Ne PVM moketojas - rangos darbai\",0,B58*0.21),2)","v":15424.45},null,null,{"$f":"ROUND(IF(B11=\"Ne PVM moketojas - rangos darbai\",0,E58*0.21),2)","v":0},null,null,null,{"$f":"SUM(B77:G77)","v":15424.45}]
["Suma su PVM",{"$f":"SUM(B76:D77)","v":88874.22},null,null,{"$f":"SUM(E76:G77)","v":0},null,null,null,{"$f":"SUM(B78:G78)","v":88874.22}]
[]
[]
[null,"PINIGU JUDEJIMAS (NURODOMAS SUTARTYJE)",null,null,null,null,null,null,"PINIGŲ JUDĖJIMAS (NURODOMAS SUTARTYJE)"]
["Rangovo išrašoma sąskaita (sut. 2.1)",{"$f":"B60","v":88874.22},null,null,{"$f":"E60","v":0},null,null,null,{"$f":"SUM(B82:G82)","v":88874.22}]
["Kaupiamosiomis ir kitomis lėšomis apmokama dalis (sut. 2.2)",{"$f":"IF(OR(AND(Paraiska!B6 = 1, Paraiska!B9=\"\"),AND(Paraiska!B6 = 2, Paraiska!B9=\"\", Paraiska!E9=\"\")),IFERROR((B31+B32)/SUM(B10:G10)*B10,0),IFERROR((B31+B32)/SUM(B9:G9)*B9,0))","v":0},null,null,{"$f":"SUM(B31:G32)-B83","v":0},null,null,null,{"$f":"SUM(B83:G83)","v":0}]
["Jur. klientų suma, surenkama per 1 mėn., apmokama dalis (sut. 2.2)",null,null,null,null,null,null,null,{"$f":"SUM(B84:G84)","v":0}]
["Likusi sąskaitos dalis (be kaupiamųjų lėšų) (faktoringo atveju, faktoringuojama) (sut. 2.3)",{"$f":"B82-B83-B84","v":88874.22},null,null,{"$f":"E82-E83-E84","v":0},null,null,null,88874.22]
["Faktoringo mokestis (sut. 4.1)",{"$f":"IF(B47=\"FORMOJE YRA KLAIDŲ, PRAŠOME PATIKRINTI ĮVESTAS REIKŠMES\",0,B72)","v":13249.220000000001},null,null,{"$f":"IF(B47=\"FORMOJE YRA KLAIDŲ, PRAŠOME PATIKRINTI ĮVESTAS REIKŠMES\",0,E72)","v":0},null,null,null,{"$f":"SUM(B86:G86)","v":13249.220000000001}]
["Administratorius sulaiko dalį lėšų už atvirkštinį PVM (sut. 4.3)",{"$f":"IF(B12=\"TAIP\",B59,0)","v":15424.45},null,null,{"$f":"IF(E12=\"TAIP\",E59,0)","v":0},null,null,null,15424.45]
["Administratorius sulaiko dalį lėšų už garantiją (sut. 4.2)",{"$f":"B40","v":2937.99},null,null,{"$f":"E40","v":0},null,null,null,2937.99]
["Administratorius sulaiko dalį lėšų už administravimo mokesčius (sut. 4.4)",{"$f":"B66","v":15124.99},null,null,{"$f":"E66","v":0},null,null,null,15124.99]
["Rangovo gaunama suma",{"$f":"IF(B47=\"FORMOJE YRA KLAIDŲ, PRAŠOME PATIKRINTI ĮVESTAS REIKŠMES\",0,(B60-B88-B86-B87-B89))","v":42137.57},null,null,{"$f":"IF(B47=\"FORMOJE YRA KLAIDŲ, PRAŠOME PATIKRINTI ĮVESTAS REIKŠMES\",0,(E60-E88-E86-E87-E89))","v":0},null,null,null,42137.57]
["Rangovo gaunama suma (kaupiamosios ir kitos lėšos)",{"$f":"IF(B83>B90,B90,B83)","v":0},null,null,{"$f":"IF(E83>E90,E90,E83)","v":0},null,null,null,0]
["Rangovo gaunama suma (Jur. klientų suma, surenkama per 1 mėn.)",null,null,null,null,null,null,null,{"$f":"SUM(B92:G92)","v":0}]
["Rangovo gaunama suma (be kaupiamųjų ir kitų lėšų (sut. 4.8))",{"$f":"B90-B91-B92","v":42137.57},null,null,{"$f":"E90-E91-E92","v":0},null,null,null,{"$f":"SUM(B93:G93)","v":42137.57}]
[]
[]
[]
["PAPILDOMA INFORMACIJA UŽSAKOVUI:"]
["Gyventojams išrašomos sąskaitos faktūros","Suma","PVM","Suma su PVM"]
["Už visą laikotarpį - KONKURSINĖ KAINA",{"$f":"IFERROR(SUM(B58:G58),0)","v":73449.77},{"$f":"IFERROR(ROUND(IF(B11=\"Ne PVM moketojas - rangos darbai\",0,SUM(B58:G58)*0.21),2),0)","v":15424.45},{"$f":"SUM(B99,C99)","v":88874.22}]
["Kaupiamųjų ir kitų lėšų panaudojimas",{"$f":"IFERROR(ROUND(IF(C99>0,((B31+B32)/1.21),B31+B32),2),0)","v":0},{"$f":"D100-B100","v":0},{"$f":"B31+B32","v":0}]
["Likusi mokėtina suma (Konkursinė kaina minus kaupiamosios ir kitos iš anksto panaudotos lėšos)",{"$f":"B99-B100","v":73449.77},{"$f":"C99-C100","v":15424.45},{"$f":"D99-D100","v":88874.22}]
["Skaičiuojama įvertinus kaupiamąsias lėšas:"]
["Už vieną mėnesį (namui)",{"$f":"B101/VLOOKUP($B$35,Support!$A$18:'Support'!$J$25,10,0)","v":2040.2713888888891},{"$f":"C101/VLOOKUP($B$35,Support!$A$18:'Support'!$J$25,10,0)","v":428.45694444444445},{"$f":"D101/VLOOKUP($B$35,Support!$A$18:'Support'!$J$25,10,0)","v":2468.7283333333335}]
["Suma vienam kv. m. už visą laikotarpį",{"$f":"B101/$B$28","v":12.954401070924026},{"$f":"C101/$B$28","v":2.7204239250635376},{"$f":"D101/$B$28","v":15.674824995987564}]
["Suma vienam kv. m. per vieną mėnesį",{"$f":"B103/$B$28","v":0.35984447419233406},{"$f":"C103/$B$28","v":7.556733125176493E-2},{"$f":"D103/$B$28","v":0.43541180544409896}]
["Suma vidutinio dydžio patalpai (butui) už visą laikotarpį",{"$f":"IFERROR(B101/$B$30,0)","v":844.25022988505748},{"$f":"IFERROR(C101/$B$30,0)","v":177.2925287356322},{"$f":"IFERROR(D101/$B$30,0)","v":1021.5427586206897}]
["Suma vidutinio dydžio patalpai (butui) per vieną mėnesį",{"$f":"IFERROR(B103/$B$30,0)","v":23.451395274584932},{"$f":"IFERROR(C103/$B$30,0)","v":4.9247924648786716},{"$f":"IFERROR(D103/$B$30,0)","v":28.376187739463603}]
[]
[]
[]
["KONTROLĖ (UŽDARBIS)","KONTROLĖ (UŽDARBIS)",null,null,null,null,null,null,"KONTROLĖ (UŽDARBIS)"]
["Rangovas",{"$f":"SUM(B113:B115)","v":45075.560000000005},null,null,null,null,null,null,{"$f":"B112","v":45075.560000000005}]
["Pardavimo pajamos",{"$f":"SUM(B58:G58)","v":73449.77},null,null,null,null,null,null,{"$f":"B113","v":73449.77}]
["Komisinių sąnaudos",{"$f":"-IF(OR(B11=\"PVM mokėtojas\",B11=\"PVM mokėtojas - PVM neapmokestinama veikla, ne rangos darbai\")=TRUE,SUM(B64:G64),SUM(B64:G64)+SUM(B65:G65))","v":-15124.99},null,null,null,null,null,null,-15124.99]
["Faktoringo sąnaudos",{"$f":"-IF(B47=\"FORMOJE YRA KLAIDŲ, PRAŠOME PATIKRINTI ĮVESTAS REIKŠMES\",0,IF(OR(B11=\"PVM mokėtojas\",B11=\"PVM mokėtojas - PVM neapmokestinama veikla, ne rangos darbai\")=TRUE,SUM(B70:G70),SUM(B72:G72)))","v":-13249.220000000001},null,null,null,null,null,null,-13249.220000000001]
[]
["Administratorius",{"$f":"SUM(B64:G64)","v":12500},null,null,null,null,null,null,{"$f":"B117","v":12500}]
["Finansuotojas",{"$f":"IF(B47=\"FORMOJE YRA KLAIDŲ, PRAŠOME PATIKRINTI ĮVESTAS REIKŠMES\",0,IF(OR(B11=\"PVM mokėtojas\",B11=\"PVM mokėtojas - PVM neapmokestinama veikla, ne rangos darbai\")=TRUE,SUM(B70:G70),SUM(B72:G72)))","v":13249.220000000001},null,null,null,null,null,null,13249.220000000001]
["VMI",{"$f":"IF(OR(B11=\"PVM mokėtojas\",B11=\"PVM mokėtojas - PVM neapmokestinama veikla, ne rangos darbai\")=TRUE,C99,C99+B65+E65)","v":18049.440000000002},null,null,null,null,null,null,18049.440000000002]
[]
["Iš viso",{"$f":"SUM(B112,B117,B118,B119)","v":88874.22},null,null,null,null,null,null,{"$f":"B121","v":88874.22}]
["Kontrolė",{"$f":"D99-B121","v":0},null,null,null,null,null,null,0]
[]
[]
[]
[]
[]
[]
[]
[]
[null,"Darbas #1",null,null,"Darbas #2"]
[null,"PortalPRO",null,null,null,null,null,null,"PortalPRO"]
["Rangovo gaunamos pajamos, EUR be PVM",2000,null,null,null,null,null,null,{"$f":"SUM(B133:G133)","v":2000}]
["Darbų vykdytojo PVM mokėtojo statusas","PVM mokėtojas",null,null,null,null,null,null,{"$f":"B134","v":"PVM mokėtojas"}]
[]
["Administratoriaus pavadinimas","UAB „Mano Būstas Alytus“",null,null,null,null,null,null,{"$f":"B136","v":"UAB „Mano Būstas Alytus“"}]
["Iniciatorius",null,null,null,null,null,null,null,{"$f":"B137","v":0}]
[]
["Namo valdymo forma","Bendrija",null,null,null,null,null,null,{"$f":"B139","v":"Bendrija"}]
["Namo adresas",null,null,null,null,null,null,null,{"$f":"B140","v":0}]
["Darbо tipas",null,null,null,null,null,null,null,{"$f":"B141","v":0}]
["Naudingas namo/laiptinės plotas, kv. m.",500,null,null,null,null,null,null,500]
["Namo/laiptinės butų skaičius, vnt.",null,null,null,null,null,null,null,0]
["Panaudojama kaupiamųjų lėšų suma",null,null,null,null,null,null,null,0]
["Panaudojamos kitos iš anksto sumokamos sumos, Eur",null,null,null,null,null,null,null,0]
["Objekto nemokumas, %",0,null,null,null,null,null,null,{"$f":"B146","v":0}]
["Minimali darbų kaina vienam kv.m. taikant išsimokėjimą",1.5,null,null,null,null,null,null,{"$f":"B147","v":1.5}]
["Ar darbams suteikiamas išsimokėjimo terminas?",{"$f":"IFERROR(IF(AND(B156>2000,(B156-B144-B145)/B142>=1.5)=TRUE,\"TAIP\",\"NE\"),\"NE\")","v":"TAIP"},null,null,null,null,null,null,{"$f":"B148","v":"TAIP"}]
["Išsimokėjimo terminas (paskaičiuojamas automatiškai)",{"$f":"IF(B148=\"NE\",\"Be išsimokėjimo termino\",\"6 mėn.\")","v":"6 mėn."},null,null,null,null,null,null,{"$f":"B149","v":"6 mėn."},"Be išsimokėjimo termino","Be išsimokėjimo termino"]
[]
[]
[]
["Sąskaita faktūra","PortalPRO sąskaita",null,null,null,null,null,null,"PortalPRO sąskaita"]
["Suma be PVM",{"$f":"B133","v":2000},null,null,{"$f":"E133","v":0},null,null,null,{"$f":"SUM(B154:G154)","v":2000}]
["PVM",{"$f":"ROUND(IF(B134=\"PVM mokėtojas\",B154*0.21,0),2)","v":420},null,null,{"$f":"ROUND(IF(B134=\"PVM mokėtojas\",E154*0.21,0),2)","v":0},null,null,null,{"$f":"SUM(B155:G155)","v":420}]
["Suma su PVM",{"$f":"SUM(B154:D155)","v":2420},null,null,{"$f":"SUM(E154:G155)","v":0},null,null,null,2420]
[]
[]
[]
["PAPILDOMA INFORMACIJA ADMINISTRATORIUI:"]
["Gyventojams išrašomos sąskaitos faktūros","Suma","PVM","Suma su PVM"]
["Už visą laikotarpį - KONKURSINĖ KAINA",{"$f":"SUM(B154:G154)","v":2000},{"$f":"SUM(B155:G155)","v":420},{"$f":"SUM(B162:C162)","v":2420}]
["Kaupiamųjų ir kitų lėšų panaudojimas",{"$f":"ROUND(IF(B134=\"PVM mokėtojas\",SUM(B144:G145)/1.21,SUM(B144:G145)),2)","v":0},{"$f":"D163-B163","v":0},{"$f":"SUM(B144:G145)","v":0}]
["Už visą laikotarpį - KONKURSINĖ KAINA (panaudojus kaupiamąsias lėšas)",{"$f":"B162-B163","v":2000},{"$f":"C162-C163","v":420},{"$f":"SUM(B164:C164)","v":2420}]
["Skaičiuojama įvertinus kaupiamąsias lėšas:"]
["Už vieną mėnesį (namui)",{"$f":"IF(B148=\"TAIP\",B164/6,B164)","v":333.33333333333331},{"$f":"IF(B148=\"TAIP\",C164/6,C164)","v":70},{"$f":"SUM(B166:C166)","v":403.33333333333331}]
["Suma vienam kv. m. už visą laikotarpį",{"$f":"IFERROR(B164/$B$142,0)","v":4},{"$f":"IFERROR(C164/$B$142,0)","v":0.84},4.84]
["Suma vienam kv. m. per vieną mėnesį",{"$f":"IFERROR(IF(B148=\"TAIP\",B164/B142/6,B164/B142),0)","v":0.66666666666666663},{"$f":"IFERROR(IF(B148=\"TAIP\",C164/B142/6,C164/B142),0)","v":0.13999999999999999},0.80666666666666664]
["Suma vidutinio dydžio patalpai (butui) už visą laikotarpį",{"$f":"IFERROR(B164/B143,0)","v":0},{"$f":"IFERROR(C164/B143,0)","v":0},0]
["Suma vidutinio dydžio patalpai (butui) per vieną mėnesį",{"$f":"IFERROR(IF(B148=\"TAIP\",B164/B143/6,B164/B143),0)","v":0},{"$f":"IFERROR(IF(B148=\"TAIP\",C164/B143/6,C164/B143),0)","v":0},0]
[]
[]
[]
[]
[]
[null,"PASLAUGŲ PAKETO KAINOS APSKAIČIAVIMAS",null,null,null,null,null,null,"PASLAUGŲ PAKETO KAINOS APSKAIČIAVIMAS",null,null,null,null,null,{"$f":"IF('Darbu Sarasas'!$N$4=\"NE\",\"*Pasirinktos netinkamos darbų garantijos sąlygos !!!\",\"\")","v":""}]
[null,"Suma","PVM","Suma su PVM","Suma","PVM","Suma su PVM",null,"Suma","PVM","Suma su PVM"]
["Techninis konsultavimas dėl optimalaus darbų įgyvendinimo",{"$f":"IF(OR(AND(Paraiska!B6 = 1, Paraiska!B9=\"\"),AND(Paraiska!B6 = 2, Paraiska!B9=\"\", Paraiska!E9=\"\")),0,IFERROR(Support!B37/SUM(B9:G9)*B9,0))","v":0},{"$f":"ROUND(B178*0.21,2)","v":0},{"$f":"B178+C178","v":0},{"$f":"I178-B178","v":0},{"$f":"J178-C178","v":0},{"$f":"K178-D178","v":0},null,{"$f":"IF(B9=\"\",0,ROUND(VLOOKUP(Support!W18,Support!N18:T25,IF(B35=Support!A18,4,5),FALSE)*(B9+E9),2)+ROUND(IF(B36<D8,0,B36*VLOOKUP(B35,Support!A18:K25,11,0))*(B9+E9),2))","v":0},{"$f":"ROUND(I178*0.21,2)","v":0},{"$f":"I178+J178","v":0},null,null,null,{"$f":"IF('Darbu Sarasas'!$N$4=\"NE\",\"Tokiems darbams kaip: kondicionavimo sistemų papildymas šaldymo skysčiu, \",\"\")","v":""}]
["Projektinės užduoties parengimas, siekiant Rangovui tinkamai pateikti pirkimo pasiulymą",null,null,null,null,null,null,null,null,null,null,null,null,null,{"$f":"IF('Darbu Sarasas'!$N$4=\"NE\",\"projektavimo darbai, konstrukcijų būklės vertinimas, techninės apžiūros, tyrimai, \",\"\")","v":""}]
["Rangovų atliktų darbų garantinių įsipareigojimų organizavimas",null,null,null,null,null,null,null,null,null,null,null,null,null,{"$f":"IF('Darbu Sarasas'!$N$4=\"NE\",\"periodiniai patikrinimai, ekspertizės,\",\"\")","v":""}]
["Rangovų sertifikavimas (patikimų tiekejų sąrašas)"]
["Marketinginės, reklaminės (patikimų rangovų sąrašo viešinimo) paslaugos",null,null,null,null,null,null,null,null,null,null,null,null,null,{"$f":"IF('Darbu Sarasas'!$N$4=\"NE\",\"yra netaikomas nei garantinis sulaikymas, nei draudimas\",\"\")","v":""}]
[{"$f":"IF(B34=\"TAIP\",\"Rangovų finansinio faktoringo organizavimas\",\"\")","v":"Rangovų finansinio faktoringo organizavimas"},{"$f":"IF(B34=\"TAIP\",IF(OR(AND(Paraiska!B6 = 1, Paraiska!B9=\"\"),AND(Paraiska!B6 = 2, Paraiska!B9=\"\", Paraiska!E9=\"\")),0,IFERROR(Support!B42/SUM(B9:G9)*B9,0)),\"\")","v":0},{"$f":"IF(B34=\"TAIP\",ROUND(B183*0.21,2),\"\")","v":0},{"$f":"IF(B34=\"TAIP\",B183+C183,\"\")","v":0},{"$f":"IF(B34=\"TAIP\",I183-B183,\"\")","v":0},{"$f":"IF(B34=\"TAIP\",J183-C183,\"\")","v":0},{"$f":"IF(B34=\"TAIP\",K183-D183,\"\")","v":0},null,{"$f":"IF(B34=\"TAIP\",IF(B9=\"\",0,IF(B35=Support!A18,0,ROUND(VLOOKUP(Support!W18,Support!N18:T25,6,FALSE)*(B9+E9),2))),\"\")","v":0},{"$f":"IF(B34=\"TAIP\",ROUND(I183*0.21,2),\"\")","v":0},{"$f":"IF(B34=\"TAIP\",I183+J183,\"\")","v":0}]
[{"$f":"IF(B34=\"TAIP\",\"Garantijos kaštai\",\"\")","v":"Garantijos kaštai"},{"$f":"IF(B34=\"TAIP\",IF(OR(AND(Paraiska!B6 = 1, Paraiska!B9=\"\"),AND(Paraiska!B6 = 2, Paraiska!B9=\"\", Paraiska!E9=\"\")),0,IFERROR(Support!B43/SUM(B9:G9)*B9,0)),\"\")","v":0},{"$f":"IF(B34=\"TAIP\",ROUND(B184*0.21,2),\"\")","v":0},{"$f":"IF(B34=\"TAIP\",B184+C184,\"\")","v":0},{"$f":"IF(B34=\"TAIP\",I184-B184,\"\")","v":0},{"$f":"IF(B34=\"TAIP\",J184-C184,\"\")","v":0},{"$f":"IF(B34=\"TAIP\",K184-D184,\"\")","v":0},null,{"$f":"IF(B34=\"TAIP\",IF(B9=\"\",0,IF(B35=Support!A18,0,ROUND(VLOOKUP(Support!W18,Support!N18:T25,7,FALSE)*(B9+E9),2))),\"\")","v":0},{"$f":"IF(B34=\"TAIP\",ROUND(I184*0.21,2),\"\")","v":0},{"$f":"IF(B34=\"TAIP\",I184+J184,\"\")","v":0},null,null,null,{"$f":"IF('Darbu Sarasas'!$N$4=\"NE\",\"Kitiems darbams turi būti taikomas arba garantinis sulaikymas, arba draudimas\",\"\")","v":""}]
[]
["UŽSAKOVO IŠRAŠOMA SĄSKAITA (RANGOVUI), BENDRA SUMA",{"$f":"SUM($B$178:$B$184)","v":0},{"$f":"SUM($C$178:$C$184)","v":0},{"$f":"SUM($D$178:$D$184)","v":0}]
[null,null,null,null,null,null,null,null,"UŽSAKOVO IŠRAŠOMA SĄSKAITA (RANGOVUI)"]
[null,null,null,null,null,null,null,null,{"$f":"IF(B9=\"\",0,SUM(B64:G64))","v":0}]
[null,null,null,null,null,null,null,null,{"$f":"IF(B9=\"\",0,SUM(B65:G65))","v":0}]
[null,null,null,null,null,null,null,null,{"$f":"IF(B9=\"\",0,SUM(B66:G66))","v":0}]
[]
[]
[null,{"$f":"IF(B34=\"TAIP\",\"FAKTORINGO SĄNAUDOS\",\"\")","v":"FAKTORINGO SĄNAUDOS"},null,null,null,null,null,null,{"$f":"IF(B34=\"TAIP\",\"FAKTORINGO SĄNAUDOS\",\"\")","v":"FAKTORINGO SĄNAUDOS"}]
[{"$f":"IF(B34=\"TAIP\",\"Suma be PVM\",\"\")","v":"Suma be PVM"},{"$f":"IF(B34=\"TAIP\",IF(OR(AND(Paraiska!B6 = 1, Paraiska!B9=\"\"),AND(Paraiska!B6 = 2, Paraiska!B9=\"\", Paraiska!E9=\"\")),0,IFERROR(ROUND((Support!D53-(((B31+B32)/SUM(B9:G9))*B9))*B37,2),0)),\"\")","v":0},null,null,{"$f":"IF(B34=\"TAIP\",IF(E9=\"\",0,IF(E9=0,0,ROUND(((Support!D53+Support!D73)-B31-B32)*B37,2)-B70)),\"\")","v":0},null,null,null,{"$f":"IF(B34=\"TAIP\",IF(B9=\"\",0,SUM(B70:G70)),\"\")","v":0}]
[{"$f":"IF(B34=\"TAIP\",\"PVM\",\"\")","v":"PVM"},{"$f":"IF(B34=\"TAIP\",IF(OR(AND(Paraiska!B6 = 1, Paraiska!B9=\"\"),AND(Paraiska!B6 = 2, Paraiska!B9=\"\", Paraiska!E9=\"\")),0,ROUND(B70*0.21,2)),\"\")","v":0},null,null,{"$f":"IF(B34=\"TAIP\",IF(E9=\"\",0,IF(E9=0,0,ROUND((Support!D53+Support!D73-B31-B32)*B37*0.21,2)-B71)),\"\")","v":0},null,null,null,{"$f":"IF(B34=\"TAIP\",IF(B9=\"\",0,SUM(B71:G71)),\"\")","v":0}]
[{"$f":"IF(B34=\"TAIP\",\"Faktoringo sąnaudos\",\"\")","v":"Faktoringo sąnaudos"},{"$f":"IF(B34=\"TAIP\",IF(OR(AND(Paraiska!B6 = 1, Paraiska!B9=\"\"),AND(Paraiska!B6 = 2, Paraiska!B9=\"\", Paraiska!E9=\"\")),0,SUM(B70:D71)),\"\")","v":0},null,null,{"$f":"IF(B34=\"TAIP\",IF(E9=\"\",0,SUM(E70:G71)),\"\")","v":0},null,null,null,{"$f":"IF(B34=\"TAIP\",IF(B9=\"\",0,SUM(B72:G72)),\"\")","v":0}]
[]
[]
[null,"PINIGŲ JUDĖJIMAS (NURODOMAS SUTARTYJE)",null,null,null,null,null,null,"PINIGŲ JUDĖJIMAS (NURODOMAS SUTARTYJE)"]
[{"$f":"IF(B34=\"TAIP\",\"Faktoringo mokestis (sut. 4.1)\",\"\")","v":"Faktoringo mokestis (sut. 4.1)"},{"$f":"IF(B34=\"TAIP\",IF(OR(AND(Paraiska!B6 = 1, Paraiska!B9=\"\"),AND(Paraiska!B6 = 2, Paraiska!B9=\"\", Paraiska!E9=\"\")),0,IF(B47=\"FORMOJE YRA KLAIDŲ, PRAŠOME PATIKRINTI ĮVESTAS REIKŠMES\",0,B72)),\"\")","v":0},null,null,{"$f":"IF(B34=\"TAIP\",IF(E9=\"\",0,IF(B47=\"FORMOJE YRA KLAIDŲ, PRAŠOME PATIKRINTI ĮVESTAS REIKŠMES\",0,E72)),\"\")","v":0},null,null,null,{"$f":"IF(B34=\"TAIP\",IF(B9=\"\",0,SUM(B86:G86)),\"\")","v":0}]
["Administratorius sulaiko dalį lėšų už atvirkštinį PVM (sut. 4.3)",{"$f":"IF(OR(AND(Paraiska!B6 = 1, Paraiska!B9=\"\"),AND(Paraiska!B6 = 2, Paraiska!B9=\"\", Paraiska!E9=\"\")),0,IF(B12=\"TAIP\",B59,0))","v":0},null,null,{"$f":"IF(E9=\"\",0,IF(E12=\"TAIP\",E59,0))","v":0},null,null,null,{"$f":"IF(B9=\"\",0,SUM(B87:G87))","v":0}]
["Administratorius sulaiko dalį lėšų už garantiją (sut. 4.2)",{"$f":"IF(OR(AND(Paraiska!B6 = 1, Paraiska!B9=\"\"),AND(Paraiska!B6 = 2, Paraiska!B9=\"\", Paraiska!E9=\"\")),0,B40)","v":0},null,null,{"$f":"IF(E9=\"\",0,E40)","v":0},null,null,null,{"$f":"IF(B9=\"\",0,SUM(B88:G88))","v":0}]
["Administratorius sulaiko dalį lėšų už administravimo mokesčius (sut. 4.4)",{"$f":"IF(OR(AND(Paraiska!B6 = 1, Paraiska!B9=\"\"),AND(Paraiska!B6 = 2, Paraiska!B9=\"\", Paraiska!E9=\"\")),0,B66)","v":0},null,null,{"$f":"IF(E9=\"\",0,E66)","v":0},null,null,null,{"$f":"IF(B9=\"\",0,SUM(B89:G89))","v":0}]
[null,"Čia nepildyti! Pildyti tik nuspaudus vartotojo mygtuką"]
[]
[]
[null,"Įjungus lentelę, viršuje matysite pranešimą apie Macros aktyvavimą, visada spauskite \"Enable Content\""]

{"sheet":"Issimokejimo grafikas","index":2,"n_rows":57,"n_cols":6,"rows_kept":57,"cut":false,"hidden":true,"merged":[[6,1,6,5],[0,2,0,5],[1,2,1,5],[4,3,4,5],[3,3,3,5],[2,3,2,5]]}
[null,null,"Pildomi laukai"]
[null,null,"Informacija apie paskolą"]
[null,null,"Mėnesiai",{"$f":"IF(Paraiska!B13=\"PortalPRO\",IF(Paraiska!B148=\"TAIP\",6,1),VLOOKUP(Paraiska!B35,Support!$A$18:$J$25,10,0))","v":36}]
[null,null,"Suma",{"$f":"IF(Paraiska!B13=\"PortalPRO\",Paraiska!D164,Paraiska!I85)","v":88874.22}]
[null,null,"Data","2021-04-25"]
[null,null,null,{"$f":"EOMONTH(C9,D3-1)","v":"2024-03-31"}]
[null,"Mokėjimų grafikas"]
[null,"Mėnesis","Kredito grąžinimo ir palūkanų mokėjimo data","Kredito likutis periodo pradžioje","Mokėtina suma","Kredito likutis periodo pabaigoje"]
[null,1,{"$f":"IF($B$9>$D$3,\"\",EOMONTH(D5,0))","v":"2021-04-30"},{"$f":"D4","v":88874.22},{"$f":"IF(C9=$D$6,D9,ROUND(IF($D$4/$D$3>D9,D9,$D$4/$D$3),2))","v":2468.73},{"$f":"D9-E9","v":86405.49}]
[null,2,{"$f":"IF(B10>$D$3,\"\",EOMONTH(C9,1))","v":"2021-05-31"},{"$f":"F9","v":86405.49},{"$f":"IF(C10=$D$6,D10,ROUND(IF($D$4/$D$3>D10,D10,$D$4/$D$3),2))","v":2468.73},{"$f":"D10-E10","v":83936.760000000009}]
[null,3,"2021-06-30",{"$f":"F10","v":83936.760000000009},2468.73,81468.030000000013]
[null,4,"2021-07-31",81468.030000000013,2468.73,78999.300000000017]
[null,5,"2021-08-31",78999.300000000017,2468.73,76530.570000000022]
[null,6,"2021-09-30",76530.570000000022,2468.73,74061.840000000026]
[null,7,"2021-10-31",74061.840000000026,2468.73,71593.11000000003]
[null,8,"2021-11-30",71593.11000000003,2468.73,69124.380000000034]
[null,9,"2021-12-31",69124.380000000034,2468.73,66655.650000000038]
[null,10,"2022-01-31",66655.650000000038,2468.73,64186.920000000035]
[null,11,"2022-02-28",64186.920000000035,2468.73,61718.190000000031]
[null,12,"2022-03-31",61718.190000000031,2468.73,59249.460000000028]
[null,13,"2022-04-30",59249.460000000028,2468.73,56780.730000000025]
[null,14,"2022-05-31",56780.730000000025,2468.73,54312.000000000022]
[null,15,"2022-06-30",54312.000000000022,2468.73,51843.270000000019]
[null,16,"2022-07-31",51843.270000000019,2468.73,49374.540000000015]
[null,17,"2022-08-31",49374.540000000015,2468.73,46905.810000000012]
[null,18,"2022-09-30",46905.810000000012,2468.73,44437.080000000009]
[null,19,"2022-10-31",44437.080000000009,2468.73,41968.350000000006]
[null,20,"2022-11-30",41968.350000000006,2468.73,39499.620000000003]
[null,21,"2022-12-31",39499.620000000003,2468.73,37030.89]
[null,22,"2023-01-31",37030.89,2468.73,34562.159999999996]
[null,23,"2023-02-28",34562.159999999996,2468.73,32093.429999999997]
[null,24,"2023-03-31",32093.429999999997,2468.73,29624.699999999997]
[null,25,"2023-04-30",29624.699999999997,2468.73,27155.969999999998]
[null,26,"2023-05-31",27155.969999999998,2468.73,24687.239999999998]
[null,27,"2023-06-30",24687.239999999998,2468.73,22218.51]
[null,28,"2023-07-31",22218.51,2468.73,19749.78]
[null,29,"2023-08-31",19749.78,2468.73,17281.05]
[null,30,"2023-09-30",17281.05,2468.73,14812.32]
[null,31,"2023-10-31",14812.32,2468.73,12343.59]
[null,32,"2023-11-30",12343.59,2468.73,9874.86]
[null,33,"2023-12-31",9874.86,2468.73,7406.130000000001]
[null,34,"2024-01-31",7406.130000000001,2468.73,4937.4000000000015]
[null,35,"2024-02-29",4937.4000000000015,2468.73,2468.6700000000014]
[null,36,"2024-03-31",2468.6700000000014,2468.6700000000014,0]
[null,37,"",0,0,0]
[null,38,"",0,0,0]
[null,39,"",0,0,0]
[null,40,"",0,0,0]
[null,41,"",0,0,0]
[null,42,"",0,0,0]
[null,43,"",0,0,0]
[null,44,"",0,0,0]
[null,45,"",0,0,0]
[null,46,"",0,0,0]
[null,47,"",0,0,0]
[null,48,"",0,0,0]
[null,null,null,"Bendra mokėtina suma",{"$f":"SUM(E9:E56)","v":88874.22}]

{"sheet":"Darbu Sarasas","index":3,"n_rows":55,"n_cols":14,"rows_kept":55,"cut":false,"hidden":false,"merged":[]}
["Buhalterinė sąskaita NAV","DK sąskaita","Darbų pavadinimai","Atvirkštinis PVM","Garantija","Pasirinkti darbo tipą",null,"Atvirkštinis PVM","Garantija",null,1]
["Apsaugos sistemų montavimas","50108053","Apsaugos sistemų (pultinės ir vaizdo stebėjimo kamerų) įrengimas ir montavimas","Taikomas APVM","TAIP","Apsauginės, gaisrinės signalizacijos ir silpnų srovių sistemų instaliacijos, centralės keitimas, remontas","Signalizacijos (silpnos srovės) apsauginė ir gaisrinė","Taikomas APVM","TAIP",null,{"$f":"IF(I2=\"TAIP\",0,IF(I2=\"NE\",1,\"\"))","v":0},null,"Ar pasirinktas darbo tipas, kuriam netaikomas nei garantinis laikotarpis, nei draudimas?",{"$f":"IF(OR(Paraiska!$B$27='Darbu Sarasas'!$F$1,Paraiska!$B$27='Darbu Sarasas'!$F$20,Paraiska!$B$27='Darbu Sarasas'!$F$31,Paraiska!$B$27='Darbu Sarasas'!$F$36,Paraiska!$B$27='Darbu Sarasas'!$F$37,Paraiska!$B$27='Darbu Sarasas'!$F$38,Paraiska!$B$27='Darbu Sarasas'!$F$39,Paraiska!$B$27='Darbu Sarasas'!$F$54,Paraiska!$B$27='Darbu Sarasas'!$F$55),\"TAIP\",\"NE\")","v":"NE"}]
["Š.v. tiekimo ir kanalizavimo sistemų remontas","501087","Kanalizacijos ir nuotekos tinklų vamzdynų remontas","Taikomas APVM","TAIP","Apsaugos sistemų (pultinės ir vaizdo stebėjimo kamerų) įrengimas ir montavimas","Apsaugos sistemos","Taikomas APVM","TAIP",null,{"$f":"IF(I3=\"TAIP\",0,IF(I3=\"NE\",1,\"\"))","v":0},null,"Ar pasirinktas garantijos (draudimo) taikymas?",{"$f":"IF(OR(Paraiska!$B$52=Support!$N$31,Paraiska!$B$52=Support!$N$32),\"TAIP\",\"NE\")","v":"TAIP"}]
["Dujas deginančių įr. papild.","5010898","Dujotiekio sistemos vamzdynų ir įrangos remontas","Taikomas APVM","TAIP","Balkonų, terasų grindų ir konstrukcijų remontas","Išorės sienos (fasadai)","Taikomas APVM","TAIP",null,0,null,"Ar pasirinktos tinkamos darbų garantijos sąlygos, pagal pasirinktą darbo tipą?",{"$f":"IF(OR(AND($N$2=\"TAIP\",$N$3=\"TAIP\"),AND($N$2=\"NE\",$N$3=\"NE\")),\"NE\",\"TAIP\")","v":"TAIP"}]
["Elektros instaliacijos remontas","501089","Elektros skydinės renovacija, atnaujinimas","Taikomas APVM","TAIP","Dujotiekio sistemos vamzdynų ir įrangos remontas","Dujotiekis (katilinės)","Taikomas APVM","TAIP",null,0]
["Elektros instaliacijos remontas","501089","Laiptinės apšvietimo atnaujinimas (šviestuvai su davikliais)","Taikomas APVM","TAIP","Elektros skydinės renovacija, atnaujinimas","Elektra","Taikomas APVM","TAIP",null,0]
["Elektros instaliacijos remontas","501089","Laiptinės apskaitos skydelių atnaujinimas, remontas","Taikomas APVM","TAIP","Fasado mūro sienų atstatymas","Išorės sienos (fasadai)","Taikomas APVM","TAIP",null,0]
["Elektros instaliacijos remontas","501089","Magistralinių elektros instaliacijos laidų keitimas","Taikomas APVM","TAIP","Gaisrinių žarnų ir čiaupų patikra, perkantavimas ir bandymas","Priešgaisrinis vandentiekis","Taikomas APVM","TAIP",null,0]
["Elektros instaliacijos remontas","501089","Rūsio elektros instaliacijos, apšvietimo atnaujinimas, remontas","Taikomas APVM","TAIP","Įėjimo į laiptinę stogelio remontas","Įėjimo aikštelės, stogeliai","Taikomas APVM","TAIP",null,0]
["Elektros instaliacijos remontas","501089","Telefonspynės įrengimas","Taikomas APVM","TAIP","Laiptinių/rūsio įėjimo durų keitimas","Langai ir durys","Taikomas APVM","TAIP",null,0]
["Elektros instaliacijos remontas","501089","Kelio užtvaro, vartų automatikos remontas, įrengimas","Taikomas APVM","TAIP","Pastatų išorės sienų, stogų, balkonų, inžinierinių sistemų renovacija ir atnaujinimas","Pastatų renovacijos darbai","Taikomas APVM","TAIP",null,0]
["Staliaus ir bendrastatybiniai","501088","Laiptinės įėjimo aikštelės, laiptų remontas","Taikomas APVM","TAIP","Pastatų išorės sienų siūlių hermetizavimas","Išorės sienos (fasadai)","Taikomas APVM","TAIP",null,0]
["Staliaus ir bendrastatybiniai","501088","Įėjimo į laiptinę stogelio remontas","Taikomas APVM","TAIP","Išorės sienų (fasado) apdailos remonto darbai","Išorės sienos (fasadai)","Taikomas APVM","TAIP",null,0]
["Staliaus ir bendrastatybiniai","501088","Projektavimo darbai (išorės sienos (fasadai), balkonai, perdangos)","Netaikomas APVM","NE","Išorės sienų (fasado) šiltinimo darbai","Išorės sienos (fasadai)","Taikomas APVM","TAIP",null,0]
["Staliaus ir bendrastatybiniai","501088","Pastato konstrukcijų būklės vertinimas","Netaikomas APVM","NE","Kaminų, vėdinimo šachtų remontas","Kaminai, vėdinimo šachtos","Taikomas APVM","TAIP",null,0]
["Staliaus ir bendrastatybiniai","501088","Išorės sienų (fasado) apdailos remonto darbai","Taikomas APVM","TAIP","Kanalizacijos ir nuotekos tinklų vamzdynų remontas","Buitinės ir lietaus nuotekos","Taikomas APVM","TAIP",null,0]
["Staliaus ir bendrastatybiniai","501088","Išorės sienų (fasado) šiltinimo darbai","Taikomas APVM","TAIP","Karšto vandens, cirkuliacinio ir šildymo magistralinių vamzdžių keitimo darbai","Šildymo ir karšto vandens sistemos","Taikomas APVM","TAIP",null,0]
["Staliaus ir bendrastatybiniai","501088","Fasado mūro sienų atstatymas","Taikomas APVM","TAIP","Kelio užtvaro montavimas (bendrastatybinė dalys)","Teritorija","Taikomas APVM","TAIP",null,0]
["Staliaus ir bendrastatybiniai","501088","Balkonų, terasų grindų ir konstrukcijų remontas","Taikomas APVM","TAIP","Kelio užtvaro, vartų automatikos remontas, įrengimas","Elektra","Taikomas APVM","TAIP",null,0]
["Siūlių remontas","501083","Pastatų išorės sienų siūlių hermetizavimas","Taikomas APVM","TAIP","Kondicionavimo sistemų papildymas šaldymo skysčiu","Vėdinimo ir oro kondicionavimo sistemos","Netaikomas APVM","NE",null,1]
["Siūlių remontas","501083","Tarpblokinių siūlių hermetizavimas","Taikomas APVM","TAIP","Kondicionierių montavimas","Vėdinimo ir oro kondicionavimo sistemos","Taikomas APVM","TAIP",null,0]
["Stogo remontas","501081","Kaminų, vėdinimo šachtų remontas","Taikomas APVM","TAIP","Laipinės apdaila dekoratyviniu tinku ","Pastatų vidaus paviršiai","Taikomas APVM","TAIP",null,0]
["Langų/durų keitimas","501084","Laiptinių/rūsio įėjimo durų keitimas","Taikomas APVM","TAIP","Laiptinės apskaitos skydelių atnaujinimas, remontas","Elektra","Taikomas APVM","TAIP",null,0]
["Langų/durų keitimas","501084","Laiptinės langų keitimas","Taikomas APVM","TAIP","Laiptinės apšvietimo atnaujinimas (šviestuvai su davikliais)","Elektra","Taikomas APVM","TAIP",null,0]
["Langų/durų keitimas","501084","Plieninių laiptinės durų su telefonspyne montavimas","Taikomas APVM","TAIP","Laiptinės įėjimo aikštelės, laiptų remontas","Įėjimo aikštelės, stogeliai","Taikomas APVM","TAIP",null,0]
["Liftų remontas","5010801","Liftų įrangos ir prietaisų keitimas, remontas","Netaikomas APVM","TAIP","Laiptinės langų keitimas","Langai ir durys","Taikomas APVM","TAIP",null,0]
["Liftų remontas","5010801","Liftų montavimas, modernizavimas (nauji liftai)","Taikomas APVM","TAIP","Lietaus nuvedimo sistemos keitimas (latakai, lietvamzdžiai)","Stogai","Taikomas APVM","TAIP",null,0]
["Staliaus ir bendrastatybiniai","501088","Pastatų nuogrindos įrengimas, remontas","Taikomas APVM","TAIP","Liftų įrangos ir prietaisų keitimas, remontas","Liftai","Netaikomas APVM","TAIP",null,0]
["Pastatų renovacija","5010893","Pastatų išorės sienų, stogų, balkonų, inžinierinių sistemų renovacija ir atnaujinimas","Taikomas APVM","TAIP","Liftų montavimas, modernizavimas (nauji liftai)","Liftai","Taikomas APVM","TAIP",null,0]
["Laiptinių priežiūra ir remontas","501085","Pastatų vidaus paviršių apdailos remontas (dažymas, tinkavimas)","Taikomas APVM","TAIP","Magistralinių elektros instaliacijos laidų keitimas","Elektra","Taikomas APVM","TAIP",null,0]
["Laiptinių priežiūra ir remontas","501085","Laipinės apdaila dekoratyviniu tinku ","Taikomas APVM","TAIP","Pastato konstrukcijų būklės vertinimas","Išorės sienos (fasadai)","Netaikomas APVM","NE",null,1]
["Priešgaisrinių sistemų papild.","5010897","Priešgaisrinio vandentiekio sistemos vamzdyno ir čiaupų remontas","Taikomas APVM","TAIP","Pastatų nuogrindos įrengimas, remontas","Nuogrinda","Taikomas APVM","TAIP",null,0]
["Priešgaisrinių sistemų papild.","5010897","Gaisrinių žarnų ir čiaupų patikra, perkantavimas ir bandymas","Taikomas APVM","TAIP","Pastatų vidaus paviršių apdailos remontas (dažymas, tinkavimas)","Pastatų vidaus paviršiai","Taikomas APVM","TAIP",null,0]
["Š.v. tiekimo ir kanalizavimo sistemų remontas","501087","Projektavimo darbai (šalto vandens, buitinių ir lietaus nuotekų sistemos)","Netaikomas APVM","NE","Plieninių laiptinės durų su telefonspyne montavimas","Langai ir durys","Taikomas APVM","TAIP",null,0]
["Š.v. tiekimo ir kanalizavimo sistemų remontas","501087","Šalto vandens ir nuotekų tinklų vamzdynų remontas","Taikomas APVM","TAIP","Priešgaisrinio vandentiekio sistemos vamzdyno ir čiaupų remontas","Priešgaisrinis vandentiekis","Taikomas APVM","TAIP",null,0]
["Š.v. tiekimo ir kanalizavimo sistemų remontas","501087","Šalto vandens sistemos vamzdynų keitimas (magistralinių, stovų, skirstomojo)","Taikomas APVM","TAIP","Projektavimo darbai (išorės sienos (fasadai), balkonai, perdangos)","Išorės sienos (fasadai)","Netaikomas APVM","NE",null,1]
["Š.v. tiekimo ir kanalizavimo sistemų remontas","501087","Vandens valymo įrangos įrengimas su filtrais","Taikomas APVM","TAIP","Projektavimo darbai (šalto vandens, buitinių ir lietaus nuotekų sistemos)","Šalto vandens ir nuotekų tinklai","Netaikomas APVM","NE",null,1]
["Pultinė apsauga","5010896","Apsauginės, gaisrinės signalizacijos ir silpnų srovių sistemų instaliacijos, centralės keitimas, remontas","Taikomas APVM","TAIP","Projektavimo darbai (šildymo ir karšto vandens sistemos, šilumos punktai)","Šildymo ir karšto vandens sistemos","Netaikomas APVM","NE",null,1]
["Šildymo ir kv. sistemos remontas","501086","Projektavimo darbai (šildymo ir karšto vandens sistemos, šilumos punktai)","Netaikomas APVM","NE","Projektavimo darbai (stogai)","Stogai","Netaikomas APVM","NE",null,1]
["Šildymo ir kv. sistemos remontas","501086","Šildymo ir karšto vandens sistemų stovų vamzdynų keitimas","Taikomas APVM","TAIP","Prilydomos stogo dangos keitimas, apšiltinimas","Stogai","Taikomas APVM","TAIP",null,0]
["Šildymo ir kv. sistemos remontas","501086","Karšto vandens, cirkuliacinio ir šildymo magistralinių vamzdžių keitimo darbai","Taikomas APVM","TAIP","Rūsio elektros instaliacijos, apšvietimo atnaujinimas, remontas","Elektra","Taikomas APVM","TAIP",null,0]
["Šildymo ir kv. sistemos remontas","501086","Slėgio perkričio reguliatoriaus ir privirinamos sklendės keitimo darbai","Taikomas APVM","TAIP","Šalto vandens ir nuotekų tinklų vamzdynų remontas","Šalto vandens ir nuotekų tinklai","Taikomas APVM","TAIP",null,0]
["Šildymo ir kv. sistemos remontas","501086","Šildymo sistemos skirstomojo vamzdyno remontas","Taikomas APVM","TAIP","Šalto vandens sistemos vamzdynų keitimas (magistralinių, stovų, skirstomojo)","Šalto vandens sistemos","Taikomas APVM","TAIP",null,0]
["Šildymo ir kv. sistemos remontas","501086","Šilumos punkto įrangos keitimas, remontas (valdiklių, dvieigių vožtuvų, pavarų, siurblių, šilumokaičių)","Taikomas APVM","TAIP","Šildymo ir karšto vandens sistemų stovų vamzdynų keitimas","Šildymo ir karšto vandens sistemos","Taikomas APVM","TAIP",null,0]
["Stogo remontas","501081","Projektavimo darbai (stogai)","Netaikomas APVM","NE","Šildymo sistemos skirstomojo vamzdyno remontas","Šildymo ir karšto vandens sistemos","Taikomas APVM","TAIP",null,0]
["Stogo remontas","501081","Prilydomos stogo dangos keitimas, apšiltinimas","Taikomas APVM","TAIP","Šilumos punkto įrangos keitimas, remontas (valdiklių, dvieigių vožtuvų, pavarų, siurblių, šilumokaičių)","Šildymo ir karšto vandens sistemos","Taikomas APVM","TAIP",null,0]
["Stogo remontas","501081","Stogo dangos ir konstrukcijų kapitalinis remontas","Taikomas APVM","TAIP","Šlaitinio stogo dangos keitimas (čerpių, šiferio, plieno)","Stogai","Taikomas APVM","TAIP",null,0]
["Stogo remontas","501081","Šlaitinio stogo dangos keitimas (čerpių, šiferio, plieno)","Taikomas APVM","TAIP","Slėgio perkričio reguliatoriaus ir privirinamos sklendės keitimo darbai","Šildymo ir karšto vandens sistemos","Taikomas APVM","TAIP",null,0]
["Stogo remontas","501081","Lietaus nuvedimo sistemos keitimas (latakai, lietvamzdžiai)","Taikomas APVM","TAIP","Stogo dangos ir konstrukcijų kapitalinis remontas","Stogai","Taikomas APVM","TAIP",null,0]
["Staliaus ir bendrastatybiniai","501088","Kelio užtvaro montavimas (bendrastatybinė dalys)","Taikomas APVM","TAIP","Tarpblokinių siūlių hermetizavimas","Išorės sienos (fasadai)","Taikomas APVM","TAIP",null,0]
["Vėdinimo ir oro kondicionavimo","5010891","Kondicionavimo sistemų papildymas šaldymo skysčiu","Netaikomas APVM","NE","Telefonspynės įrengimas","Elektra","Taikomas APVM","TAIP",null,0]
["Vėdinimo ir oro kondicionavimo","5010891","Vėdinimo ir oro kondicionavimo sistemų remontas","Taikomas APVM","TAIP","Vandens valymo įrangos įrengimas su filtrais","Šalto vandens sistemos ","Taikomas APVM","TAIP",null,0]
["Vėdinimo ir oro kondicionavimo","5010891","Kondicionierių montavimas","Taikomas APVM","TAIP","Vėdinimo ir oro kondicionavimo sistemų remontas","Vėdinimo ir oro kondicionavimo sistemos","Taikomas APVM","TAIP",null,0]
[null,null,"Projektavimo darbai ( elektros tinklai ir įrenginiai)","Netaikomas APVM","NE","Projektavimo darbai ( elektros tinklai ir įrenginiai)","Elektra","Netaikomas APVM","NE",null,1]
[null,null,"Statinių konstrukcijų techninė apžiūra, tyrimai, periodinis patikrinimas, ekspertizės","Netaikomas APVM","NE","Statinių konstrukcijų techninė apžiūra, tyrimai, periodinis patikrinimas, ekspertizės","Teritorija","Netaikomas APVM","NE",null,1]